Publisher Label,Publisher URI,"Supplier","Net Amount £","Organisational Unit","Merchant Category Code","Purpose","Payment Date"
"Wolverhampton City Council","http://opendatacommunities.org/id/metropolitan-district-council/wolverhampton","REDWINGS LODGE","54.95","Adult Services - West","7011","Services - Supplies & Services to users","31/07/2018"
"Wolverhampton City Council","http://opendatacommunities.org/id/metropolitan-district-council/wolverhampton","WOLVERHAMPTON CC","2.50","Headstart Phase 3","7523","Parking Fees","31/07/2018"
"Wolverhampton City Council","http://opendatacommunities.org/id/metropolitan-district-council/wolverhampton","Virgin Trains","59.60","Fostering Team & Allowances","4112","Public Transport","31/07/2018"
"Wolverhampton City Council","http://opendatacommunities.org/id/metropolitan-district-council/wolverhampton","CHEMSOL CYMRU LTD","45.00","Towers Outdoor Education Centre","5199","Fixtures and Fittings - Purchases","31/07/2018"
"Wolverhampton City Council","http://opendatacommunities.org/id/metropolitan-district-council/wolverhampton","HN NUTTALL LTD","437.60","Towers Outdoor Education Centre","5085","Provisions (Not for resale)","31/07/2018"
"Wolverhampton City Council","http://opendatacommunities.org/id/metropolitan-district-council/wolverhampton","WOLVERHAMPTON CC","3.33","Headstart - Young People Engagement","7523","Parking Fees","31/07/2018"
"Wolverhampton City Council","http://opendatacommunities.org/id/metropolitan-district-council/wolverhampton","Amazon UK Marketplace","316.36","Strategic ICTS (ICT Serv Budget)","5942","Books","31/07/2018"
"Wolverhampton City Council","http://opendatacommunities.org/id/metropolitan-district-council/wolverhampton","VIKING","31.98","Delivery & OCE Development","5111","Stationery","31/07/2018"
"Wolverhampton City Council","http://opendatacommunities.org/id/metropolitan-district-council/wolverhampton","POST OFFICE COUNTER","67.00","Intensive Family Support Team","9402","Comms - Postage","31/07/2018"
"Wolverhampton City Council","http://opendatacommunities.org/id/metropolitan-district-council/wolverhampton","MACHINE MART LTD","35.97","Culwell Street Depot","5722","R&M - Departmental planned (external)","31/07/2018"
"Wolverhampton City Council","http://opendatacommunities.org/id/metropolitan-district-council/wolverhampton","CUMMINGS BROTHERS LOCK","4.17","Culwell Street Depot","7399","Equipment - Purchase","31/07/2018"
"Wolverhampton City Council","http://opendatacommunities.org/id/metropolitan-district-council/wolverhampton","Trainline","9.45","CIN/CP Social Work Unit - Area 8","4112","Section 17","31/07/2018"
"Wolverhampton City Council","http://opendatacommunities.org/id/metropolitan-district-council/wolverhampton","Cross Country Trains","7.80","Head of Strategic Commissioning � People","4112","Public Transport","31/07/2018"
"Wolverhampton City Council","http://opendatacommunities.org/id/metropolitan-district-council/wolverhampton","Wix.com","9.97","Technical Support","5817","Computing - Purchase of Software","31/07/2018"
"Wolverhampton City Council","http://opendatacommunities.org/id/metropolitan-district-council/wolverhampton","ASDA GEORGE COM LEEDS","51.25","EIP Locality 3","5411","Grant Payments","31/07/2018"
"Wolverhampton City Council","http://opendatacommunities.org/id/metropolitan-district-council/wolverhampton","BAKER ROSS LTD","193.87","Education And Access","5970","Materials","31/07/2018"
"Wolverhampton City Council","http://opendatacommunities.org/id/metropolitan-district-council/wolverhampton","EE BILSTON","30.79","LAC Team","4814","Financial Assistance In Exceptional Circ","31/07/2018"
"Wolverhampton City Council","http://opendatacommunities.org/id/metropolitan-district-council/wolverhampton","ASDA GROCERIES ONLINE","61.05","Ernest Bold Court","5411","Provisions (Not for resale)","31/07/2018"
"Wolverhampton City Council","http://opendatacommunities.org/id/metropolitan-district-council/wolverhampton","AMAZON SVCS EU-UK AMAZ","13.31","Ernest Bold Court","5942","Stationery","31/07/2018"
"Wolverhampton City Council","http://opendatacommunities.org/id/metropolitan-district-council/wolverhampton","TVLICENSING.CO.UK","150.50","Duke Street Bungalows","7392","Services - General Licences","31/07/2018"
"Wolverhampton City Council","http://opendatacommunities.org/id/metropolitan-district-council/wolverhampton","TVLICENSING.CO.UK","150.50","Duke Street Bungalows","7392","Services - General Licences","31/07/2018"
"Wolverhampton City Council","http://opendatacommunities.org/id/metropolitan-district-council/wolverhampton","THE POST OFFICE","26.15","CIN/CP Social Work Unit - Area 4","9402","Comms - Postage","31/07/2018"
"Wolverhampton City Council","http://opendatacommunities.org/id/metropolitan-district-council/wolverhampton","PO LOW HILL 1592","100.00","EIP Locality 7","6011","Grant Payments","31/07/2018"
"Wolverhampton City Council","http://opendatacommunities.org/id/metropolitan-district-council/wolverhampton","WWW.WMCA.CO.UK","652.00","Business Manager - Place","4112","Public Transport","31/07/2018"
"Wolverhampton City Council","http://opendatacommunities.org/id/metropolitan-district-council/wolverhampton","A.B.C. COUNTDOWN CARS","16.17","Adult Services - East","4121","Client Transport","31/07/2018"
"Wolverhampton City Council","http://opendatacommunities.org/id/metropolitan-district-council/wolverhampton","THE GC INDEX","49.00","Central Training","7392","Training Expenses","31/07/2018"
"Wolverhampton City Council","http://opendatacommunities.org/id/metropolitan-district-council/wolverhampton","WEST MID TRAVEL","94.25","Community Pathways","4131","Public Transport","30/07/2018"
"Wolverhampton City Council","http://opendatacommunities.org/id/metropolitan-district-council/wolverhampton","POST OFFICE COUNTER","273.00","LAC Team","9402","Comms - Postage","30/07/2018"
"Wolverhampton City Council","http://opendatacommunities.org/id/metropolitan-district-council/wolverhampton","AMAZON SVCS EU-UK AMAZ","42.99","Technical Support","5942","Equipment - Purchase","30/07/2018"
"Wolverhampton City Council","http://opendatacommunities.org/id/metropolitan-district-council/wolverhampton","Amazon EU","23.44","Global Budgets","5969","Books","30/07/2018"
"Wolverhampton City Council","http://opendatacommunities.org/id/metropolitan-district-council/wolverhampton","Amazon EU","11.32","Global Budgets","5969","Books","30/07/2018"
"Wolverhampton City Council","http://opendatacommunities.org/id/metropolitan-district-council/wolverhampton","Amazon UK Marketplace","14.29","Global Budgets","5942","Books","30/07/2018"
"Wolverhampton City Council","http://opendatacommunities.org/id/metropolitan-district-council/wolverhampton","ASDA GROCERIES ONLINE","-1.95","Ernest Bold Court","5411","Provisions (Not for resale)","30/07/2018"
"Wolverhampton City Council","http://opendatacommunities.org/id/metropolitan-district-council/wolverhampton","ASDA GROCERIES ONLINE","70.37","Ernest Bold Court","5411","Provisions (Not for resale)","30/07/2018"
"Wolverhampton City Council","http://opendatacommunities.org/id/metropolitan-district-council/wolverhampton","CITY OF WOLVERHAMPTON","30.00","Head of Service - CINCP","9399","Services - Professional Fees","30/07/2018"
"Wolverhampton City Council","http://opendatacommunities.org/id/metropolitan-district-council/wolverhampton","Trainline","68.40","Service Director Adults","4112","Public Transport","30/07/2018"
"Wolverhampton City Council","http://opendatacommunities.org/id/metropolitan-district-council/wolverhampton","Amazon EU","28.94","Travelwise","5969","Equipment - Purchase","30/07/2018"
"Wolverhampton City Council","http://opendatacommunities.org/id/metropolitan-district-council/wolverhampton","Trainline","34.45","CIN/CP Social Work Unit - Area 4","4112","Public Transport","30/07/2018"
"Wolverhampton City Council","http://opendatacommunities.org/id/metropolitan-district-council/wolverhampton","WLY MYTIMEREWARDS.CO.U","15.00","Revenues","5968","Subscriptions","30/07/2018"
"Wolverhampton City Council","http://opendatacommunities.org/id/metropolitan-district-council/wolverhampton","HOME BARGAINS WOLVERHA","17.93","Parks - Ranger Service","5251","Equipment - Purchase","30/07/2018"
"Wolverhampton City Council","http://opendatacommunities.org/id/metropolitan-district-council/wolverhampton","DERBY C CNCL TEL PAYME","-16.00","Head of Service - CINCP","9399","Services - Professional Fees","30/07/2018"
"Wolverhampton City Council","http://opendatacommunities.org/id/metropolitan-district-council/wolverhampton","WWW.DERBY.GOV.UK","16.00","Head of Service - CINCP","9399","Services - Professional Fees","30/07/2018"
"Wolverhampton City Council","http://opendatacommunities.org/id/metropolitan-district-council/wolverhampton","LODGE TYRE","171.95","Northicote Farm","5532","Vehicle Maintenance - Repairs","30/07/2018"
"Wolverhampton City Council","http://opendatacommunities.org/id/metropolitan-district-council/wolverhampton","BOOTS - 6564","3.99","Ernest Bold Court","5912","Provisions (Not for resale)","30/07/2018"
"Wolverhampton City Council","http://opendatacommunities.org/id/metropolitan-district-council/wolverhampton","Amazon UK Marketplace","10.95","LAC Team","5942","Books","30/07/2018"
"Wolverhampton City Council","http://opendatacommunities.org/id/metropolitan-district-council/wolverhampton","TICKET OFFICE-INTE","60.00","EIP Locality 6","7997","Grant Payments","30/07/2018"
"Wolverhampton City Council","http://opendatacommunities.org/id/metropolitan-district-council/wolverhampton","ITUNES.COM/BILL",".79","Strategic ICTS (ICT Serv Budget)","5735","Computing - Purchase of Software","30/07/2018"
"Wolverhampton City Council","http://opendatacommunities.org/id/metropolitan-district-council/wolverhampton","Amazon UK Marketplace","29.95","Upper Pendeford Farm Childrens Home","5942","Books","30/07/2018"
"Wolverhampton City Council","http://opendatacommunities.org/id/metropolitan-district-council/wolverhampton","WILKO RETAIL LIMIT","16.30","Service Wide","5722","Equipment - Purchase","30/07/2018"
"Wolverhampton City Council","http://opendatacommunities.org/id/metropolitan-district-council/wolverhampton","Amazon UK Marketplace","6.23","EIP Locality 1","5942","Books","30/07/2018"
"Wolverhampton City Council","http://opendatacommunities.org/id/metropolitan-district-council/wolverhampton","ARGOS RETAIL GROUP","199.98","Older People Provider Management","5310","Equipment - Purchase","30/07/2018"
"Wolverhampton City Council","http://opendatacommunities.org/id/metropolitan-district-council/wolverhampton","HOMEBASE LTD 114","60.00","Parks - Ranger Service","5211","Equipment - Purchase","30/07/2018"
"Wolverhampton City Council","http://opendatacommunities.org/id/metropolitan-district-council/wolverhampton","CARVER/WOLVERHAMPTON/L","17.49","Parks - Ranger Service","5211","Equipment - Purchase","30/07/2018"
"Wolverhampton City Council","http://opendatacommunities.org/id/metropolitan-district-council/wolverhampton","GRO HM PASSPORT OFFICE","7.71","LAC Transitions Team","9399","Client Allowances","30/07/2018"
"Wolverhampton City Council","http://opendatacommunities.org/id/metropolitan-district-council/wolverhampton","NOVOTEL WOLVERHAMPTON","20.00","Adoption and Residence Team & Allowances","7011","Parking Fees","30/07/2018"
"Wolverhampton City Council","http://opendatacommunities.org/id/metropolitan-district-council/wolverhampton","POST OFFICE COUNTER","283.80","Adoption and Residence Team & Allowances","9402","Comms - Postage","30/07/2018"
"Wolverhampton City Council","http://opendatacommunities.org/id/metropolitan-district-council/wolverhampton","ASDA GROCERIES ONLINE","34.97","EIP Locality 4","5411","Grant Payments","30/07/2018"
"Wolverhampton City Council","http://opendatacommunities.org/id/metropolitan-district-council/wolverhampton","BEVERLEY HOTEL LTD - T","220.00","Emergency Duty Team","7011","Services - Supplies & Services to users","30/07/2018"
"Wolverhampton City Council","http://opendatacommunities.org/id/metropolitan-district-council/wolverhampton","THE POST OFFICE","1.58","Radical Landscapes","9402","Comms - Postage","30/07/2018"
"Wolverhampton City Council","http://opendatacommunities.org/id/metropolitan-district-council/wolverhampton","EMAP Publishing Ltd","269.10","Communications & Marketing - General","2741","Publications","30/07/2018"
"Wolverhampton City Council","http://opendatacommunities.org/id/metropolitan-district-council/wolverhampton","AMAZON SVCS EU-UK AMAZ","14.34","Communications & Marketing - General","5942","Books","30/07/2018"
"Wolverhampton City Council","http://opendatacommunities.org/id/metropolitan-district-council/wolverhampton","NETFLIX.COM","5.99","","4899","Comms - Telephone Rental","30/07/2018"
"Wolverhampton City Council","http://opendatacommunities.org/id/metropolitan-district-council/wolverhampton","SurveyMonkey","254.02","Parent/Partnership Service","7372","Subscriptions","30/07/2018"
"Wolverhampton City Council","http://opendatacommunities.org/id/metropolitan-district-council/wolverhampton","ARGOS LTD","33.32","LAC Transitions Team","5310","Client Allowances","30/07/2018"
"Wolverhampton City Council","http://opendatacommunities.org/id/metropolitan-district-council/wolverhampton","SP   FASHIONNOVA.COM","-75.03","LAC Transitions Team","5691","Client Allowances","30/07/2018"
"Wolverhampton City Council","http://opendatacommunities.org/id/metropolitan-district-council/wolverhampton","ALDI 73 772","15.82","LAC Transitions Team","5411","Client Allowances","30/07/2018"
"Wolverhampton City Council","http://opendatacommunities.org/id/metropolitan-district-council/wolverhampton","TRUTEX WOLVERHAMPTON","124.46","EIP Locality 3","5137","Grant Payments","27/07/2018"
"Wolverhampton City Council","http://opendatacommunities.org/id/metropolitan-district-council/wolverhampton","Amazon UK Marketplace","49.99","EIP Locality 3","5942","Equipment - Purchase","27/07/2018"
"Wolverhampton City Council","http://opendatacommunities.org/id/metropolitan-district-council/wolverhampton","000002200500000","240.00","Childrens with Disabilities Team","6011","Financial Assistance In Exceptional Circ","27/07/2018"
"Wolverhampton City Council","http://opendatacommunities.org/id/metropolitan-district-council/wolverhampton","CT WOLVERHAMPTON","4.17","LAC Transitions Team","8398","Independant Living Allowance","27/07/2018"
"Wolverhampton City Council","http://opendatacommunities.org/id/metropolitan-district-council/wolverhampton","CURRYS S/S","150.00","Long Service Awards","5732","Gratuities","27/07/2018"
"Wolverhampton City Council","http://opendatacommunities.org/id/metropolitan-district-council/wolverhampton","AMZ VoxonStore","-5.82","EIP Locality 3","5999","Equipment - Purchase","27/07/2018"
"Wolverhampton City Council","http://opendatacommunities.org/id/metropolitan-district-council/wolverhampton","MARKS&SPENCER PLC SACA","34.00","EIP Locality 3","5411","Grant Payments","27/07/2018"
"Wolverhampton City Council","http://opendatacommunities.org/id/metropolitan-district-council/wolverhampton","Amazon UK Marketplace","24.07","LAC Transitions Team","5942","Client Allowances","27/07/2018"
"Wolverhampton City Council","http://opendatacommunities.org/id/metropolitan-district-council/wolverhampton","PURE360","1,500.00","Audience Development","7372","Marketing \ Non-staff advertising","27/07/2018"
"Wolverhampton City Council","http://opendatacommunities.org/id/metropolitan-district-council/wolverhampton","POST OFFICE COUNTER","42.50","Adoption and Residence Team & Allowances","9402","Comms - Postage","27/07/2018"
"Wolverhampton City Council","http://opendatacommunities.org/id/metropolitan-district-council/wolverhampton","Virgin Trains","59.60","Fostering Team & Allowances","4112","Public Transport","27/07/2018"
"Wolverhampton City Council","http://opendatacommunities.org/id/metropolitan-district-council/wolverhampton","POST OFFICE COUNTER","206.00","Fostering Team & Allowances","9402","Comms - Postage","27/07/2018"
"Wolverhampton City Council","http://opendatacommunities.org/id/metropolitan-district-council/wolverhampton","AMAZON SVCS EU-UK AMAZ","4.07","Communications & Marketing - General","5942","Books","27/07/2018"
"Wolverhampton City Council","http://opendatacommunities.org/id/metropolitan-district-council/wolverhampton","K TEAS CAKES","25.42","IMPACT","5812","Client Allowances","27/07/2018"
"Wolverhampton City Council","http://opendatacommunities.org/id/metropolitan-district-council/wolverhampton","SAINSBURYS PFS (1340)","1.67","Mayoral Expenses","5541","Vehicle Maintenance - Repairs","27/07/2018"
"Wolverhampton City Council","http://opendatacommunities.org/id/metropolitan-district-council/wolverhampton","Amazon Prime","-6.66","Admin & Support","5968","Subscriptions","27/07/2018"
"Wolverhampton City Council","http://opendatacommunities.org/id/metropolitan-district-council/wolverhampton","STUDENT ROOST","330.00","LAC Transitions Team","6513","Client Allowances","27/07/2018"
"Wolverhampton City Council","http://opendatacommunities.org/id/metropolitan-district-council/wolverhampton","EBUYER (UK) LTD","438.13","Strategic ICTS (ICT Serv Budget)","5722","Equipment - Purchase","27/07/2018"
"Wolverhampton City Council","http://opendatacommunities.org/id/metropolitan-district-council/wolverhampton","B&M RETAIL","65.78","LAC Transitions Team","5310","Client Allowances","27/07/2018"
"Wolverhampton City Council","http://opendatacommunities.org/id/metropolitan-district-council/wolverhampton","HOBBYCRAFT","12.50","Education And Access","5970","Materials","27/07/2018"
"Wolverhampton City Council","http://opendatacommunities.org/id/metropolitan-district-council/wolverhampton","ALDERSLEY LEISURE","30.00","EIP Locality 1","8299","Grant Payments","27/07/2018"
"Wolverhampton City Council","http://opendatacommunities.org/id/metropolitan-district-council/wolverhampton","Amazon UK Marketplace","49.17","Independent Living Service","5942","Equipment - Purchase","27/07/2018"
"Wolverhampton City Council","http://opendatacommunities.org/id/metropolitan-district-council/wolverhampton","Amazon UK Marketplace","40.83","Independent Living Service","5942","Equipment - Purchase","27/07/2018"
"Wolverhampton City Council","http://opendatacommunities.org/id/metropolitan-district-council/wolverhampton","Amazon UK Marketplace","24.99","Community Enablement","5942","R4007","27/07/2018"
"Wolverhampton City Council","http://opendatacommunities.org/id/metropolitan-district-council/wolverhampton","Amazon EU","19.17","Welfare Rights","5969","Stationery","27/07/2018"
"Wolverhampton City Council","http://opendatacommunities.org/id/metropolitan-district-council/wolverhampton","PO LOW HILL 1592","100.00","EIP Locality 7","6011","Grant Payments","27/07/2018"
"Wolverhampton City Council","http://opendatacommunities.org/id/metropolitan-district-council/wolverhampton","WWW.WMCA.CO.UK","502.00","Business Manager - Place","9399","Public Transport","27/07/2018"
"Wolverhampton City Council","http://opendatacommunities.org/id/metropolitan-district-council/wolverhampton","Amazon UK Marketplace","16.77","Back Scanning Team","5942","Equipment - Health and Safety","27/07/2018"
"Wolverhampton City Council","http://opendatacommunities.org/id/metropolitan-district-council/wolverhampton","HOMEZONE","168.41","LAC Transitions Team","5211","Client Allowances","27/07/2018"
"Wolverhampton City Council","http://opendatacommunities.org/id/metropolitan-district-council/wolverhampton","HOMEZONE","135.00","LAC Transitions Team","5211","Client Allowances","27/07/2018"
"Wolverhampton City Council","http://opendatacommunities.org/id/metropolitan-district-council/wolverhampton","ROYAL CARPETS","116.67","LAC Transitions Team","5713","Client Allowances","27/07/2018"
"Wolverhampton City Council","http://opendatacommunities.org/id/metropolitan-district-council/wolverhampton","TIMPSON LTD","6.67","Road Safety","7251","Equipment - Purchase","26/07/2018"
"Wolverhampton City Council","http://opendatacommunities.org/id/metropolitan-district-council/wolverhampton","GRO HM PASSPORT OFFICE","-23.40","Head of Service - CINCP","9399","Services - Professional Fees","26/07/2018"
"Wolverhampton City Council","http://opendatacommunities.org/id/metropolitan-district-council/wolverhampton","LIDL UK  DUDLEY","4.59","Children & Family Contact Services","5411","Provisions (Not for resale)","26/07/2018"
"Wolverhampton City Council","http://opendatacommunities.org/id/metropolitan-district-council/wolverhampton","AMAZON SVCS EU-UK AMAZ","23.99","Fleet Management","5942","Materials","26/07/2018"
"Wolverhampton City Council","http://opendatacommunities.org/id/metropolitan-district-council/wolverhampton","Virgin Trains","210.50","Adoption and Residence Team & Allowances","4112","Public Transport","26/07/2018"
"Wolverhampton City Council","http://opendatacommunities.org/id/metropolitan-district-council/wolverhampton","Amazon UK Marketplace","26.56","Back Scanning Team","5942","Equipment - Health and Safety","26/07/2018"
"Wolverhampton City Council","http://opendatacommunities.org/id/metropolitan-district-council/wolverhampton","SPAR SIOP TANDDERWEN","22.32","Towers Outdoor Education Centre","5411","Provisions (Not for resale)","26/07/2018"
"Wolverhampton City Council","http://opendatacommunities.org/id/metropolitan-district-council/wolverhampton","Trainline","164.70","LAC Transitions Team","4112","Client Allowances","26/07/2018"
"Wolverhampton City Council","http://opendatacommunities.org/id/metropolitan-district-council/wolverhampton","Amazon UK Marketplace","18.32","Document Centre - General","5942","Equipment - Purchase","26/07/2018"
"Wolverhampton City Council","http://opendatacommunities.org/id/metropolitan-district-council/wolverhampton","Amazon EU","35.98","Strategic ICTS (ICT Serv Budget)","5969","Equipment - Purchase","26/07/2018"
"Wolverhampton City Council","http://opendatacommunities.org/id/metropolitan-district-council/wolverhampton","APPLE ONLINE STORE GBP","258.00","Strategic ICTS (ICT Serv Budget)","5732","Equipment - Purchase","26/07/2018"
"Wolverhampton City Council","http://opendatacommunities.org/id/metropolitan-district-council/wolverhampton","Amazon EU","9.99","Upper Pendeford Farm Childrens Home","5969","Equipment - Purchase","26/07/2018"
"Wolverhampton City Council","http://opendatacommunities.org/id/metropolitan-district-council/wolverhampton","Amazon EU","9.99","Upper Pendeford Farm Childrens Home","5969","Equipment - Purchase","26/07/2018"
"Wolverhampton City Council","http://opendatacommunities.org/id/metropolitan-district-council/wolverhampton","Amazon UK Marketplace","32.90","Upper Pendeford Farm Childrens Home","5942","Books","26/07/2018"
"Wolverhampton City Council","http://opendatacommunities.org/id/metropolitan-district-council/wolverhampton","Amazon UK Marketplace","9.75","Upper Pendeford Farm Childrens Home","5942","Books","26/07/2018"
"Wolverhampton City Council","http://opendatacommunities.org/id/metropolitan-district-council/wolverhampton","TICKET OFFICE-INTE","150.00","EIP Locality 5","7997","Educ Trips, Holidays, Outings, Activity","26/07/2018"
"Wolverhampton City Council","http://opendatacommunities.org/id/metropolitan-district-council/wolverhampton","TICKET OFFICE-INTE","75.00","EIP Locality 5","7997","Educ Trips, Holidays, Outings, Activity","26/07/2018"
"Wolverhampton City Council","http://opendatacommunities.org/id/metropolitan-district-council/wolverhampton","S & B WASTE","171.00","The Maltings","4900","R5003","26/07/2018"
"Wolverhampton City Council","http://opendatacommunities.org/id/metropolitan-district-council/wolverhampton","ROYAL OAK HOTEL LT","146.00","Director of Education","7011","Services - Supplies & Services to users","26/07/2018"
"Wolverhampton City Council","http://opendatacommunities.org/id/metropolitan-district-council/wolverhampton","Amazon Prime","-6.66","EIP Locality 1","5968","Subscriptions","26/07/2018"
"Wolverhampton City Council","http://opendatacommunities.org/id/metropolitan-district-council/wolverhampton","123-REG.CO.UK","39.96","Technical Support","4816","Computing - Purchase of Software","26/07/2018"
"Wolverhampton City Council","http://opendatacommunities.org/id/metropolitan-district-council/wolverhampton","Amazon UK Marketplace","11.70","Global Budgets","5942","Books","26/07/2018"
"Wolverhampton City Council","http://opendatacommunities.org/id/metropolitan-district-council/wolverhampton","CardtronicsUK","20.00","EIP Locality 4","6011","Grant Payments","26/07/2018"
"Wolverhampton City Council","http://opendatacommunities.org/id/metropolitan-district-council/wolverhampton","WICKES","17.07","Duke Street Bungalows","5211","Equipment - R & M","26/07/2018"
"Wolverhampton City Council","http://opendatacommunities.org/id/metropolitan-district-council/wolverhampton","WOLVERHAMPTON SST","12.40","Education And Access","4112","Public Transport","26/07/2018"
"Wolverhampton City Council","http://opendatacommunities.org/id/metropolitan-district-council/wolverhampton","WOLVERHAMPTON SST","6.20","Education And Access","4112","Public Transport","26/07/2018"
"Wolverhampton City Council","http://opendatacommunities.org/id/metropolitan-district-council/wolverhampton","TVLICENSING.CO.UK","125.42","LAC Transitions Team","7392","Client Allowances","26/07/2018"
"Wolverhampton City Council","http://opendatacommunities.org/id/metropolitan-district-council/wolverhampton","Amazon EU","22.39","Ernest Bold Court","5969","Stationery","26/07/2018"
"Wolverhampton City Council","http://opendatacommunities.org/id/metropolitan-district-council/wolverhampton","AMAZON SVCS EU-UK AMAZ","11.65","Community Enablement","5942","Equipment - Purchase","26/07/2018"
"Wolverhampton City Council","http://opendatacommunities.org/id/metropolitan-district-council/wolverhampton","EE STORE R501","8.33","School Crossing Patrol","4814","Comms - Telephone Call charges","26/07/2018"
"Wolverhampton City Council","http://opendatacommunities.org/id/metropolitan-district-council/wolverhampton","SP   FASHIONNOVA.COM","75.28","LAC Transitions Team","5691","Client Allowances","26/07/2018"
"Wolverhampton City Council","http://opendatacommunities.org/id/metropolitan-district-council/wolverhampton","AMAZON SVCS EU-UK AMAZ","19.91","EIP Locality 2","5942","Stationery","26/07/2018"
"Wolverhampton City Council","http://opendatacommunities.org/id/metropolitan-district-council/wolverhampton","Amazon UK Marketplace","299.17","LAC Transitions Team","5942","Client Allowances","26/07/2018"
"Wolverhampton City Council","http://opendatacommunities.org/id/metropolitan-district-council/wolverhampton","ASDA GROCERIES ONLINE","5.00","Ernest Bold Court","5411","Provisions (Not for resale)","25/07/2018"
"Wolverhampton City Council","http://opendatacommunities.org/id/metropolitan-district-council/wolverhampton","WWW.COPSHOPUK.COM","99.86","Environmental Health - Pub Prot - Gen","1799","Equipment - Purchase","25/07/2018"
"Wolverhampton City Council","http://opendatacommunities.org/id/metropolitan-district-council/wolverhampton","EB  BUILDING SAFER FUT","45.00","Corporate Procurement Unit","7399","Conference Expenses","25/07/2018"
"Wolverhampton City Council","http://opendatacommunities.org/id/metropolitan-district-council/wolverhampton","GRO HM PASSPORT OFFICE","-23.40","Head of Service - CINCP","9399","Services - Professional Fees","25/07/2018"
"Wolverhampton City Council","http://opendatacommunities.org/id/metropolitan-district-council/wolverhampton","MIDLAND BOX OFFICE","14.00","CIN/CP Social Work Unit - Area 5","7922","Educ Trips, Holidays, Outings, Activity","25/07/2018"
"Wolverhampton City Council","http://opendatacommunities.org/id/metropolitan-district-council/wolverhampton","Trainline","9.45","CIN/CP Social Work Unit - Area 8","4112","Section 17","25/07/2018"
"Wolverhampton City Council","http://opendatacommunities.org/id/metropolitan-district-council/wolverhampton","HALFORDS 0775","21.25","Mayoral Expenses","5940","Cleaning Supplies and Materials","25/07/2018"
"Wolverhampton City Council","http://opendatacommunities.org/id/metropolitan-district-council/wolverhampton","DUNELM (SOFT FURNISHIN","35.00","Mayoral Expenses","5714","Materials","25/07/2018"
"Wolverhampton City Council","http://opendatacommunities.org/id/metropolitan-district-council/wolverhampton","ASDA SUPERSTORE","5.42","Mayoral Expenses","5411","Hospitality","25/07/2018"
"Wolverhampton City Council","http://opendatacommunities.org/id/metropolitan-district-council/wolverhampton","Amazon EU","19.55","Document Centre - General","5969","Equipment - Purchase","25/07/2018"
"Wolverhampton City Council","http://opendatacommunities.org/id/metropolitan-district-council/wolverhampton","WWW.HEXIS.CO.UK","168.60","Document Centre - General","7399","Equipment - Purchase","25/07/2018"
"Wolverhampton City Council","http://opendatacommunities.org/id/metropolitan-district-council/wolverhampton","IKEA LIMITED","22.50","LAC Transitions Team","5712","Independant Living Allowance","25/07/2018"
"Wolverhampton City Council","http://opendatacommunities.org/id/metropolitan-district-council/wolverhampton","THEBIGWORD INTERPRETIN","78.00","Emergency Duty Team","7399","Equipment - Purchase","25/07/2018"
"Wolverhampton City Council","http://opendatacommunities.org/id/metropolitan-district-council/wolverhampton","WILDSIDE ACTIVITY CENT","4.00","EIP Locality 5","7999","Educ Trips, Holidays, Outings, Activity","25/07/2018"
"Wolverhampton City Council","http://opendatacommunities.org/id/metropolitan-district-council/wolverhampton","WILDSIDE ACTIVITY CENT","16.00","EIP Locality 5","7999","Educ Trips, Holidays, Outings, Activity","25/07/2018"
"Wolverhampton City Council","http://opendatacommunities.org/id/metropolitan-district-council/wolverhampton","WILDSIDE ACTIVITY CENT","40.00","EIP Locality 5","7999","Educ Trips, Holidays, Outings, Activity","25/07/2018"
"Wolverhampton City Council","http://opendatacommunities.org/id/metropolitan-district-council/wolverhampton","REGISTRARS OFFICE","11.00","CIN/CP Social Work Unit - Area 8","8299","Section 17","25/07/2018"
"Wolverhampton City Council","http://opendatacommunities.org/id/metropolitan-district-council/wolverhampton","B&M RETAIL LTD","14.47","EIP Locality 1","5310","Equipment - Purchase","25/07/2018"
"Wolverhampton City Council","http://opendatacommunities.org/id/metropolitan-district-council/wolverhampton","WWW.IRONMONGERYANDMORE","61.25","EIP Locality 3","5251","Equipment - Purchase","25/07/2018"
"Wolverhampton City Council","http://opendatacommunities.org/id/metropolitan-district-council/wolverhampton","REGISTRARS OFFICE","20.00","CIN/CP Social Work Unit - Area 2","8299","Section 17","25/07/2018"
"Wolverhampton City Council","http://opendatacommunities.org/id/metropolitan-district-council/wolverhampton","ROYAL BK OF SCOTLAND","250.00","CIN/CP Social Work Unit - Area 6","6011","Financial Assistance In Exceptional Circ","25/07/2018"
"Wolverhampton City Council","http://opendatacommunities.org/id/metropolitan-district-council/wolverhampton","BT PAY BY PHONE","33.33","Makers Dozen","4814","Comms - Telephone Call charges","25/07/2018"
"Wolverhampton City Council","http://opendatacommunities.org/id/metropolitan-district-council/wolverhampton","TESCO STORES 5194","217.76","Towers Outdoor Education Centre","5411","Provisions (Not for resale)","25/07/2018"
"Wolverhampton City Council","http://opendatacommunities.org/id/metropolitan-district-council/wolverhampton","CHEMSOL CYMRU LTD","166.27","Towers Outdoor Education Centre","5199","Fixtures and Fittings - Purchases","25/07/2018"
"Wolverhampton City Council","http://opendatacommunities.org/id/metropolitan-district-council/wolverhampton","Trainline","85.00","Research & Development","4112","Public Transport","25/07/2018"
"Wolverhampton City Council","http://opendatacommunities.org/id/metropolitan-district-council/wolverhampton","AMAZON SVCS EU-UK AMAZ","87.50","EIP Locality 4","5942","Grant Payments","25/07/2018"
"Wolverhampton City Council","http://opendatacommunities.org/id/metropolitan-district-council/wolverhampton","BLOXWICH  SST","7.20","Economic Development","4112","Public Transport","25/07/2018"
"Wolverhampton City Council","http://opendatacommunities.org/id/metropolitan-district-council/wolverhampton","GOOGLE  ADWS9680351324","432.05","Communications & Marketing - General","5968","Subscriptions","25/07/2018"
"Wolverhampton City Council","http://opendatacommunities.org/id/metropolitan-district-council/wolverhampton","GOOGLE  ADWS3317949200","200.00","Communications & Marketing - General","5968","Subscriptions","25/07/2018"
"Wolverhampton City Council","http://opendatacommunities.org/id/metropolitan-district-council/wolverhampton","AMAZON SVCS EU-UK AMAZ","7.31","Bert Williams Leisure Centre","5942","Books","25/07/2018"
"Wolverhampton City Council","http://opendatacommunities.org/id/metropolitan-district-council/wolverhampton","GRO HM PASSPORT OFFICE","46.80","Head of Service - CINCP","9399","Services - Professional Fees","24/07/2018"
"Wolverhampton City Council","http://opendatacommunities.org/id/metropolitan-district-council/wolverhampton","CITY OF WOLVERHAMPTON","7.00","Head of Service - CINCP","9399","Services - Professional Fees","24/07/2018"
"Wolverhampton City Council","http://opendatacommunities.org/id/metropolitan-district-council/wolverhampton","CO-OP GROUP 070228","6.59","Towers Outdoor Education Centre","5411","Provisions (Not for resale)","24/07/2018"
"Wolverhampton City Council","http://opendatacommunities.org/id/metropolitan-district-council/wolverhampton","DENBIGH PLANT SERV","190.00","Towers Outdoor Education Centre","7394","Equipment - Purchase","24/07/2018"
"Wolverhampton City Council","http://opendatacommunities.org/id/metropolitan-district-council/wolverhampton","AMAZON SVCS EU-UK AMAZ","2.99","Bert Williams Leisure Centre","5942","Books","24/07/2018"
"Wolverhampton City Council","http://opendatacommunities.org/id/metropolitan-district-council/wolverhampton","CURRYS S/S","1,050.00","Long Service Awards","5732","Gratuities","24/07/2018"
"Wolverhampton City Council","http://opendatacommunities.org/id/metropolitan-district-council/wolverhampton","Trainline","79.10","Admin & Support","4112","Public Transport","24/07/2018"
"Wolverhampton City Council","http://opendatacommunities.org/id/metropolitan-district-council/wolverhampton","GO CARZ","6.70","LAC Education Team (LACE)","4121","Client Transport","24/07/2018"
"Wolverhampton City Council","http://opendatacommunities.org/id/metropolitan-district-council/wolverhampton","Amazon UK Marketplace","5.46","Upper Pendeford Farm Childrens Home","5942","Books","24/07/2018"
"Wolverhampton City Council","http://opendatacommunities.org/id/metropolitan-district-council/wolverhampton","Amazon UK Marketplace","27.98","Upper Pendeford Farm Childrens Home","5942","Books","24/07/2018"
"Wolverhampton City Council","http://opendatacommunities.org/id/metropolitan-district-council/wolverhampton","POST OFFICE COUNTER","68.25","CIN/CP Social Work Unit - Area 3","9402","Section 17","24/07/2018"
"Wolverhampton City Council","http://opendatacommunities.org/id/metropolitan-district-council/wolverhampton","ASDA GROCERIES ONLINE",".34","Upper Pendeford Farm Childrens Home","5411","Provisions (Not for resale)","24/07/2018"
"Wolverhampton City Council","http://opendatacommunities.org/id/metropolitan-district-council/wolverhampton","ASDA GROCERIES ONLINE","195.70","Upper Pendeford Farm Childrens Home","5411","Provisions (Not for resale)","24/07/2018"
"Wolverhampton City Council","http://opendatacommunities.org/id/metropolitan-district-council/wolverhampton","Amazon UK Marketplace","1.69","Upper Pendeford Farm Childrens Home","5942","Books","24/07/2018"
"Wolverhampton City Council","http://opendatacommunities.org/id/metropolitan-district-council/wolverhampton","HOME BARGAINS WOLVERHA",".57","LAC Transitions Team","5251","Independant Living Allowance","24/07/2018"
"Wolverhampton City Council","http://opendatacommunities.org/id/metropolitan-district-council/wolverhampton","BLOOMS MENSWEAR","150.00","Long Service Awards","5611","Gratuities","24/07/2018"
"Wolverhampton City Council","http://opendatacommunities.org/id/metropolitan-district-council/wolverhampton","J J RUDELL & CO LT","150.00","Long Service Awards","5944","Gratuities","24/07/2018"
"Wolverhampton City Council","http://opendatacommunities.org/id/metropolitan-district-council/wolverhampton","POST OFFICE COUNTER","48.07","Adoption and Residence Team & Allowances","9402","Comms - Postage","24/07/2018"
"Wolverhampton City Council","http://opendatacommunities.org/id/metropolitan-district-council/wolverhampton","000002200500000","120.00","Childrens with Disabilities Team","6011","Financial Assistance In Exceptional Circ","24/07/2018"
"Wolverhampton City Council","http://opendatacommunities.org/id/metropolitan-district-council/wolverhampton","ASDA GROCERIES ONLINE","180.41","Duke Street Bungalows","5411","Provisions (Not for resale)","24/07/2018"
"Wolverhampton City Council","http://opendatacommunities.org/id/metropolitan-district-council/wolverhampton","SAINSBURYS SACAT 2040","11.67","Duke Street Bungalows","5411","R4010","24/07/2018"
"Wolverhampton City Council","http://opendatacommunities.org/id/metropolitan-district-council/wolverhampton","HOBBY CRAFT LTD","108.67","Adoption and Residence Team & Allowances","5970","Stationery","24/07/2018"
"Wolverhampton City Council","http://opendatacommunities.org/id/metropolitan-district-council/wolverhampton","Virgin Trains","163.80","Adoption and Residence Team & Allowances","4112","Public Transport","24/07/2018"
"Wolverhampton City Council","http://opendatacommunities.org/id/metropolitan-district-council/wolverhampton","AMAZON SVCS EU-UK AMAZ","37.98","Northicote Farm","5942","Equipment - Purchase","24/07/2018"
"Wolverhampton City Council","http://opendatacommunities.org/id/metropolitan-district-council/wolverhampton","Virgin Trains","100.20","Adoption and Residence Team & Allowances","4112","Public Transport","24/07/2018"
"Wolverhampton City Council","http://opendatacommunities.org/id/metropolitan-district-council/wolverhampton","EB  BUILDING SAFER FUT","12.50","Building Consultancy","7399","Training Expenses","24/07/2018"
"Wolverhampton City Council","http://opendatacommunities.org/id/metropolitan-district-council/wolverhampton","CITY OF WOLVERHAMPTON","60.00","Head of Service - CINCP","9399","Services - Professional Fees","24/07/2018"
"Wolverhampton City Council","http://opendatacommunities.org/id/metropolitan-district-council/wolverhampton","ALDERSLEY LEISURE","28.00","CIN/CP Social Work Unit - Area 5","8299","Section 17","24/07/2018"
"Wolverhampton City Council","http://opendatacommunities.org/id/metropolitan-district-council/wolverhampton","ALDERSLEY LEISURE","35.00","CIN/CP Social Work Unit - Area 5","8299","Section 17","24/07/2018"
"Wolverhampton City Council","http://opendatacommunities.org/id/metropolitan-district-council/wolverhampton","CIVIC HALL","11.00","EIP Locality 5","5813","Educ Trips, Holidays, Outings, Activity","24/07/2018"
"Wolverhampton City Council","http://opendatacommunities.org/id/metropolitan-district-council/wolverhampton","CIVIC HALL","12.00","EIP Locality 5","5813","Educ Trips, Holidays, Outings, Activity","24/07/2018"
"Wolverhampton City Council","http://opendatacommunities.org/id/metropolitan-district-council/wolverhampton","CIVIC HALL","6.00","EIP Locality 5","5813","Educ Trips, Holidays, Outings, Activity","24/07/2018"
"Wolverhampton City Council","http://opendatacommunities.org/id/metropolitan-district-council/wolverhampton","Trainline","9.45","CIN/CP Social Work Unit - Area 8","4112","Section 17","24/07/2018"
"Wolverhampton City Council","http://opendatacommunities.org/id/metropolitan-district-council/wolverhampton","AMZ Amazon Media  EU S","-548.78","Landscape","5735","Computing - Purchase of Software","24/07/2018"
"Wolverhampton City Council","http://opendatacommunities.org/id/metropolitan-district-council/wolverhampton","HOME BARGAINS WOLVERHA","8.92","Parks - Ranger Service","5251","Equipment - Purchase","24/07/2018"
"Wolverhampton City Council","http://opendatacommunities.org/id/metropolitan-district-council/wolverhampton","CARVER/WOLVERHAMPTON/L","21.15","Parks - Ranger Service","5211","Equipment - Purchase","24/07/2018"
"Wolverhampton City Council","http://opendatacommunities.org/id/metropolitan-district-council/wolverhampton","ARGOS LTD","36.65","Duke Street Bungalows","5310","R4010","24/07/2018"
"Wolverhampton City Council","http://opendatacommunities.org/id/metropolitan-district-council/wolverhampton","B&M RETAIL LTD","4.98","Duke Street Bungalows","5310","Equipment - Purchase","24/07/2018"
"Wolverhampton City Council","http://opendatacommunities.org/id/metropolitan-district-council/wolverhampton","Virgin Trains","110.00","LAC Team","4112","Public Transport","24/07/2018"
"Wolverhampton City Council","http://opendatacommunities.org/id/metropolitan-district-council/wolverhampton","EB  BUILDING SAFER FUT","30.00","Private Sector Housing","7399","Services - Fees and Charges","24/07/2018"
"Wolverhampton City Council","http://opendatacommunities.org/id/metropolitan-district-council/wolverhampton","THE MAKATON CHARIT","165.00","Learning Technologies","8299","Training Expenses","24/07/2018"
"Wolverhampton City Council","http://opendatacommunities.org/id/metropolitan-district-council/wolverhampton","ASDA GROCERIES ONLINE","-.64","Ernest Bold Court","5411","Provisions (Not for resale)","24/07/2018"
"Wolverhampton City Council","http://opendatacommunities.org/id/metropolitan-district-council/wolverhampton","ASDA GROCERIES ONLINE","68.97","Ernest Bold Court","5411","Provisions (Not for resale)","24/07/2018"
"Wolverhampton City Council","http://opendatacommunities.org/id/metropolitan-district-council/wolverhampton","CARESHOP","220.14","Independant Living Services","5999","Equipment - Health and Safety","24/07/2018"
"Wolverhampton City Council","http://opendatacommunities.org/id/metropolitan-district-council/wolverhampton","WWW.PMGLTD.CO.UK","355.50","Central Training","7399","Training Expenses","24/07/2018"
"Wolverhampton City Council","http://opendatacommunities.org/id/metropolitan-district-council/wolverhampton","NAS UK","195.00","Workforce Development","8398","Training Expenses","24/07/2018"
"Wolverhampton City Council","http://opendatacommunities.org/id/metropolitan-district-council/wolverhampton","GRO HM PASSPORT OFFICE","-23.40","Head of Service - CINCP","9399","Services - Professional Fees","24/07/2018"
"Wolverhampton City Council","http://opendatacommunities.org/id/metropolitan-district-council/wolverhampton","GRO HM PASSPORT OFFICE","23.40","Head of Service - CINCP","9399","Services - Professional Fees","24/07/2018"
"Wolverhampton City Council","http://opendatacommunities.org/id/metropolitan-district-council/wolverhampton","MARK BUTLER GOLF ACADE","30.00","Youth Offending Team","8999","Services - Professional Fees","23/07/2018"
"Wolverhampton City Council","http://opendatacommunities.org/id/metropolitan-district-council/wolverhampton","YORK HOUSE HOTEL","95.00","Safeguarding Admin Resource","7011","Services - Supplies & Services to users","23/07/2018"
"Wolverhampton City Council","http://opendatacommunities.org/id/metropolitan-district-council/wolverhampton","NATIONWIDE","60.00","EIP Locality 2","6011","Grant Payments","23/07/2018"
"Wolverhampton City Council","http://opendatacommunities.org/id/metropolitan-district-council/wolverhampton","LOYD 89 CHURCH STREET","10.00","Ernest Bold Court","6011","Services - Supplies & Services to users","23/07/2018"
"Wolverhampton City Council","http://opendatacommunities.org/id/metropolitan-district-council/wolverhampton","HOBBY CRAFT LTD","56.87","Education And Access","5970","Materials","23/07/2018"
"Wolverhampton City Council","http://opendatacommunities.org/id/metropolitan-district-council/wolverhampton","POUNDLAND LTD 1463","24.17","Education And Access","5310","Materials","23/07/2018"
"Wolverhampton City Council","http://opendatacommunities.org/id/metropolitan-district-council/wolverhampton","Trainline","-3.90","Housing Regeneration - Strategy & Dev","4112","Public Transport","23/07/2018"
"Wolverhampton City Council","http://opendatacommunities.org/id/metropolitan-district-council/wolverhampton","Amazon UK Marketplace","10.15","Learning Disabilities Management","5942","Stationery","23/07/2018"
"Wolverhampton City Council","http://opendatacommunities.org/id/metropolitan-district-council/wolverhampton","Amazon Prime","7.99","Technical Support","5968","Subscriptions","23/07/2018"
"Wolverhampton City Council","http://opendatacommunities.org/id/metropolitan-district-council/wolverhampton","Amazon UK Marketplace","12.99","Global Budgets","5942","Books","23/07/2018"
"Wolverhampton City Council","http://opendatacommunities.org/id/metropolitan-district-council/wolverhampton","ASDA SUPERSTORE","24.14","EIP Locality 3","5411","Grant Payments","23/07/2018"
"Wolverhampton City Council","http://opendatacommunities.org/id/metropolitan-district-council/wolverhampton","AMZ ATOON","-2.71","Risk Management & Insurance","5999","Equipment - Purchase","23/07/2018"
"Wolverhampton City Council","http://opendatacommunities.org/id/metropolitan-district-council/wolverhampton","WCC MOTO PAYMENTS","75.00","LAC Transitions Team","9399","Client Allowances","23/07/2018"
"Wolverhampton City Council","http://opendatacommunities.org/id/metropolitan-district-council/wolverhampton","BARCLAYS","20.00","EIP Locality 3","6011","Grant Payments","23/07/2018"
"Wolverhampton City Council","http://opendatacommunities.org/id/metropolitan-district-council/wolverhampton","B & Q 1243","12.43","Specialist Support Service - North","5211","Equipment - R & M","23/07/2018"
"Wolverhampton City Council","http://opendatacommunities.org/id/metropolitan-district-council/wolverhampton","WOLVERHAMPTON CC","2.50","Headstart Phase 3","7523","Parking Fees","23/07/2018"
"Wolverhampton City Council","http://opendatacommunities.org/id/metropolitan-district-council/wolverhampton","B&M RETAIL","8.33","LAC Transitions Team","5310","Independant Living Allowance","23/07/2018"
"Wolverhampton City Council","http://opendatacommunities.org/id/metropolitan-district-council/wolverhampton","MARK BUTLER GOLF ACADE","30.00","Youth Offending Team","8999","Services - Professional Fees","23/07/2018"
"Wolverhampton City Council","http://opendatacommunities.org/id/metropolitan-district-council/wolverhampton","Amazon UK Marketplace","83.93","Delivery & OCE Development","5942","Books","23/07/2018"
"Wolverhampton City Council","http://opendatacommunities.org/id/metropolitan-district-council/wolverhampton","WWW.ARGOS.CO.UK","124.99","EIP Locality 4","5310","Grant Payments","23/07/2018"
"Wolverhampton City Council","http://opendatacommunities.org/id/metropolitan-district-council/wolverhampton","ASDA GROCERIES ONLINE","99.77","EIP Locality 4","5411","Provisions (Not for resale)","23/07/2018"
"Wolverhampton City Council","http://opendatacommunities.org/id/metropolitan-district-council/wolverhampton","MARKS&SPENCER PLC SACA","4.80","Wolverhampton Indoor and Open Market","5411","Provisions (Not for resale)","23/07/2018"
"Wolverhampton City Council","http://opendatacommunities.org/id/metropolitan-district-council/wolverhampton","MARKS&SPENCER PLC SACA","4.90","Wolverhampton Indoor and Open Market","5411","Provisions (Not for resale)","23/07/2018"
"Wolverhampton City Council","http://opendatacommunities.org/id/metropolitan-district-council/wolverhampton","ASDA SUPERSTORE","106.89","Wolverhampton Indoor and Open Market","5411","Provisions (Not for resale)","23/07/2018"
"Wolverhampton City Council","http://opendatacommunities.org/id/metropolitan-district-council/wolverhampton","B&M RETAIL LTD","33.28","Aldersley Leisure Village","5310","Equipment - Purchase","23/07/2018"
"Wolverhampton City Council","http://opendatacommunities.org/id/metropolitan-district-council/wolverhampton","MARSTONS PLC","463.08","Mayoral Expenses","5921","Hospitality","23/07/2018"
"Wolverhampton City Council","http://opendatacommunities.org/id/metropolitan-district-council/wolverhampton","ARGOS RETAIL GROUP","5.82","LAC Education Team (LACE)","5310","Equipment - Purchase","23/07/2018"
"Wolverhampton City Council","http://opendatacommunities.org/id/metropolitan-district-council/wolverhampton","THE RANGE","99.95","Cemeteries","5311","Equipment - Purchase","23/07/2018"
"Wolverhampton City Council","http://opendatacommunities.org/id/metropolitan-district-council/wolverhampton","THE RANGE","6.65","Cemeteries","5311","Equipment - Purchase","23/07/2018"
"Wolverhampton City Council","http://opendatacommunities.org/id/metropolitan-district-council/wolverhampton","AMAZON SVCS EU-UK AMAZ","115.00","Strategic ICTS (ICT Serv Budget)","5942","Books","23/07/2018"
"Wolverhampton City Council","http://opendatacommunities.org/id/metropolitan-district-council/wolverhampton","HILTON","600.09","Delivery & OCE Development","3504","Conference Expenses","23/07/2018"
"Wolverhampton City Council","http://opendatacommunities.org/id/metropolitan-district-council/wolverhampton","HILTON","600.09","Delivery & OCE Development","3504","Conference Expenses","23/07/2018"
"Wolverhampton City Council","http://opendatacommunities.org/id/metropolitan-district-council/wolverhampton","SAINSBURYS","200.00","Duke Street Bungalows","6011","Provisions (Not for resale)","23/07/2018"
"Wolverhampton City Council","http://opendatacommunities.org/id/metropolitan-district-council/wolverhampton","HILTON","600.09","Delivery & OCE Development","3504","Conference Expenses","23/07/2018"
"Wolverhampton City Council","http://opendatacommunities.org/id/metropolitan-district-council/wolverhampton","B & Q 1243","2.57","Blakenhall Resource Centre","5211","Equipment - R & M","23/07/2018"
"Wolverhampton City Council","http://opendatacommunities.org/id/metropolitan-district-council/wolverhampton","B & Q 1243","5.00","Specialist Support Service - North","5211","Equipment - R & M","23/07/2018"
"Wolverhampton City Council","http://opendatacommunities.org/id/metropolitan-district-council/wolverhampton","MYFONTS","9.59","Education And Access","8999","Materials","23/07/2018"
"Wolverhampton City Council","http://opendatacommunities.org/id/metropolitan-district-council/wolverhampton","Amazon UK Marketplace","47.69","Global Budgets","5942","Stationery","23/07/2018"
"Wolverhampton City Council","http://opendatacommunities.org/id/metropolitan-district-council/wolverhampton","ASDA GROCERIES ONLINE","-.19","Ernest Bold Court","5411","Provisions (Not for resale)","23/07/2018"
"Wolverhampton City Council","http://opendatacommunities.org/id/metropolitan-district-council/wolverhampton","ASDA GROCERIES ONLINE","93.23","Ernest Bold Court","5411","Provisions (Not for resale)","23/07/2018"
"Wolverhampton City Council","http://opendatacommunities.org/id/metropolitan-district-council/wolverhampton","Amazon UK Marketplace","24.98","Fleet Management","5942","Materials","23/07/2018"
"Wolverhampton City Council","http://opendatacommunities.org/id/metropolitan-district-council/wolverhampton","Amazon UK Marketplace","48.25","Fleet Management","5942","Materials","23/07/2018"
"Wolverhampton City Council","http://opendatacommunities.org/id/metropolitan-district-council/wolverhampton","HERON FOODS LTD","15.39","Ernest Bold Court","5499","Provisions (Not for resale)","23/07/2018"
"Wolverhampton City Council","http://opendatacommunities.org/id/metropolitan-district-council/wolverhampton","Amazon UK Marketplace","10.50","Global Budgets","5942","Books","23/07/2018"
"Wolverhampton City Council","http://opendatacommunities.org/id/metropolitan-district-council/wolverhampton","Amazon UK Marketplace","43.75","Fleet Management","5942","Materials","23/07/2018"
"Wolverhampton City Council","http://opendatacommunities.org/id/metropolitan-district-council/wolverhampton","WLY COMPLETESAVE.CO.UK","15.00","Revenues","5968","Subscriptions","23/07/2018"
"Wolverhampton City Council","http://opendatacommunities.org/id/metropolitan-district-council/wolverhampton","GRO HM PASSPORT OFFICE","7.71","LAC Transitions Team","9399","Client Allowances","20/07/2018"
"Wolverhampton City Council","http://opendatacommunities.org/id/metropolitan-district-council/wolverhampton","Amazon UK Marketplace","94.97","Licensing - General","5942","Equipment - Purchase","20/07/2018"
"Wolverhampton City Council","http://opendatacommunities.org/id/metropolitan-district-council/wolverhampton","BAKER ROSS LTD","28.12","Education And Access","5970","Materials","20/07/2018"
"Wolverhampton City Council","http://opendatacommunities.org/id/metropolitan-district-council/wolverhampton","Virgin Trains","-256.80","Fostering Team & Allowances","4112","Public Transport","20/07/2018"
"Wolverhampton City Council","http://opendatacommunities.org/id/metropolitan-district-council/wolverhampton","CLINTONS 45","2.00","Wolverhampton Indoor and Open Market","5947","Equipment - Purchase","20/07/2018"
"Wolverhampton City Council","http://opendatacommunities.org/id/metropolitan-district-council/wolverhampton","MARKS&SPENCER PLC","40.00","Wolverhampton Indoor and Open Market","5411","Provisions (Not for resale)","20/07/2018"
"Wolverhampton City Council","http://opendatacommunities.org/id/metropolitan-district-council/wolverhampton","Trainline","158.58","Mental Health Assessment & Care Mgmt","4112","Public Transport","20/07/2018"
"Wolverhampton City Council","http://opendatacommunities.org/id/metropolitan-district-council/wolverhampton","WOLVERHAMPTON CC","10.42","IMPACT","7523","Car Allowances","20/07/2018"
"Wolverhampton City Council","http://opendatacommunities.org/id/metropolitan-district-council/wolverhampton","B & Q 1243","15.17","Ernest Bold Court","5211","Equipment - R & M","20/07/2018"
"Wolverhampton City Council","http://opendatacommunities.org/id/metropolitan-district-council/wolverhampton","B & Q 1243","2.14","Ernest Bold Court","5211","Equipment - R & M","20/07/2018"
"Wolverhampton City Council","http://opendatacommunities.org/id/metropolitan-district-council/wolverhampton","LONDONEMBLE","395.83","Education And Access","8299","Equipment - Purchase","20/07/2018"
"Wolverhampton City Council","http://opendatacommunities.org/id/metropolitan-district-council/wolverhampton","BLANKPRODUCTS LTD","93.46","Education And Access","5999","Equipment - Purchase","20/07/2018"
"Wolverhampton City Council","http://opendatacommunities.org/id/metropolitan-district-council/wolverhampton","Amazon UK Marketplace","11.67","Global Budgets","5942","Stationery","20/07/2018"
"Wolverhampton City Council","http://opendatacommunities.org/id/metropolitan-district-council/wolverhampton","TVLICENSING.CO.UK","125.42","LAC Transitions Team","7392","Client Allowances","20/07/2018"
"Wolverhampton City Council","http://opendatacommunities.org/id/metropolitan-district-council/wolverhampton","GRO HM PASSPORT OFFICE","23.40","Head of Service - CINCP","9399","Services - Professional Fees","20/07/2018"
"Wolverhampton City Council","http://opendatacommunities.org/id/metropolitan-district-council/wolverhampton","TICKETMASTER UK","10.00","CIN/CP Social Work Unit - Area 5","7922","Section 17","20/07/2018"
"Wolverhampton City Council","http://opendatacommunities.org/id/metropolitan-district-council/wolverhampton","NEWHAMPTON ARTS CENTRE","30.00","EIP Locality 5","5971","Educ Trips, Holidays, Outings, Activity","20/07/2018"
"Wolverhampton City Council","http://opendatacommunities.org/id/metropolitan-district-council/wolverhampton","WILDSIDE ACTIVITY CENT","33.33","EIP Locality 5","7999","Educ Trips, Holidays, Outings, Activity","20/07/2018"
"Wolverhampton City Council","http://opendatacommunities.org/id/metropolitan-district-council/wolverhampton","CARD FACTORY","3.30","Headstart Phase 3","5947","Equipment - Purchase","20/07/2018"
"Wolverhampton City Council","http://opendatacommunities.org/id/metropolitan-district-council/wolverhampton","DUNELM (SOFT FURNISHIN","30.82","LAC Transitions Team","5714","Independant Living Allowance","20/07/2018"
"Wolverhampton City Council","http://opendatacommunities.org/id/metropolitan-district-council/wolverhampton","B&M RETAIL LTD","7.99","LAC Transitions Team","5310","Independant Living Allowance","20/07/2018"
"Wolverhampton City Council","http://opendatacommunities.org/id/metropolitan-district-council/wolverhampton","000002200500000","250.00","Childrens with Disabilities Team","6011","Financial Assistance In Exceptional Circ","20/07/2018"
"Wolverhampton City Council","http://opendatacommunities.org/id/metropolitan-district-council/wolverhampton","TV LICENSING","125.42","LAC Transitions Team","7392","Client Allowances","20/07/2018"
"Wolverhampton City Council","http://opendatacommunities.org/id/metropolitan-district-council/wolverhampton","TV LICENSING","125.42","LAC Transitions Team","7392","Client Allowances","20/07/2018"
"Wolverhampton City Council","http://opendatacommunities.org/id/metropolitan-district-council/wolverhampton","WM MORRISON 024","6.00","Bert Williams Leisure Centre","5411","Provisions (Not for resale)","20/07/2018"
"Wolverhampton City Council","http://opendatacommunities.org/id/metropolitan-district-council/wolverhampton","EB  SET CONFERENCE PRI","49.00","AES Staff Development","7399","Equipment - Purchase","20/07/2018"
"Wolverhampton City Council","http://opendatacommunities.org/id/metropolitan-district-council/wolverhampton","LOOP11.COM","158.05","City Direct","7372","Computing - Purchase of Software","20/07/2018"
"Wolverhampton City Council","http://opendatacommunities.org/id/metropolitan-district-council/wolverhampton","A.T. BROWN (COACHES) L","376.00","LAC Education Team (LACE)","7512","Car Allowances","20/07/2018"
"Wolverhampton City Council","http://opendatacommunities.org/id/metropolitan-district-council/wolverhampton","Trainline","246.90","LAC Education Team (LACE)","4112","Public Transport","20/07/2018"
"Wolverhampton City Council","http://opendatacommunities.org/id/metropolitan-district-council/wolverhampton","WWW.FRESHSTUDENTLIVING","342.00","LAC Transitions Team","8999","Client Allowances","20/07/2018"
"Wolverhampton City Council","http://opendatacommunities.org/id/metropolitan-district-council/wolverhampton","B & Q 1243","28.33","Public Conveniences","5211","R&M - Departmental planned (external)","20/07/2018"
"Wolverhampton City Council","http://opendatacommunities.org/id/metropolitan-district-council/wolverhampton","AMAZON SVCS EU-UK AMAZ","18.97","Strategic ICTS (ICT Serv Budget)","5942","Books","20/07/2018"
"Wolverhampton City Council","http://opendatacommunities.org/id/metropolitan-district-council/wolverhampton","HUGHES","148.00","LAC Transitions Team","5732","Client Allowances","20/07/2018"
"Wolverhampton City Council","http://opendatacommunities.org/id/metropolitan-district-council/wolverhampton","HOBBYCRAFT (INTERNET)","94.21","Education And Access","5970","Materials","20/07/2018"
"Wolverhampton City Council","http://opendatacommunities.org/id/metropolitan-district-council/wolverhampton","WWW.IKEA.COM","36.62","Education And Access","5712","Equipment - Purchase","20/07/2018"
"Wolverhampton City Council","http://opendatacommunities.org/id/metropolitan-district-council/wolverhampton","EB  BUILDING SAFER FUT","15.00","Housing Regeneration - Strategy & Dev","7399","Services - Fees and Charges","20/07/2018"
"Wolverhampton City Council","http://opendatacommunities.org/id/metropolitan-district-council/wolverhampton","CardtronicsUK","150.00","Vulnerable Young Persons Team","6011","Financial Assistance In Exceptional Circ","20/07/2018"
"Wolverhampton City Council","http://opendatacommunities.org/id/metropolitan-district-council/wolverhampton","Amazon UK Marketplace","28.82","Global Budgets","5942","Books","20/07/2018"
"Wolverhampton City Council","http://opendatacommunities.org/id/metropolitan-district-council/wolverhampton","TV LICENSING","125.42","LAC Transitions Team","7392","Client Allowances","20/07/2018"
"Wolverhampton City Council","http://opendatacommunities.org/id/metropolitan-district-council/wolverhampton","TV LICENSING","125.42","LAC Transitions Team","7392","Client Allowances","20/07/2018"
"Wolverhampton City Council","http://opendatacommunities.org/id/metropolitan-district-council/wolverhampton","VIRGIN MEDIS PYMTS","75.00","Civic Halls Non Direct Management A/C","4814","Comms - Telephone Call charges","20/07/2018"
"Wolverhampton City Council","http://opendatacommunities.org/id/metropolitan-district-council/wolverhampton","TESCO STORES 5194","-.55","Towers Outdoor Education Centre","5411","Provisions (Not for resale)","20/07/2018"
"Wolverhampton City Council","http://opendatacommunities.org/id/metropolitan-district-council/wolverhampton","POUNDLAND LTD 1200","10.00","Towers Outdoor Education Centre","5310","Provisions (Not for resale)","20/07/2018"
"Wolverhampton City Council","http://opendatacommunities.org/id/metropolitan-district-council/wolverhampton","POST OFFICE COUNTER","2.95","Towers Outdoor Education Centre","9402","Comms - Postage","20/07/2018"
"Wolverhampton City Council","http://opendatacommunities.org/id/metropolitan-district-council/wolverhampton","LION PICTURE FRAMING S","68.88","Technician","5999","R4007","19/07/2018"
"Wolverhampton City Council","http://opendatacommunities.org/id/metropolitan-district-council/wolverhampton","WOLVERHAMPTON CC","4.58","Headstart Phase 3","7523","Parking Fees","19/07/2018"
"Wolverhampton City Council","http://opendatacommunities.org/id/metropolitan-district-council/wolverhampton","T.A. HENN & SON LTD","900.00","Long Service Awards","5944","Gratuities","19/07/2018"
"Wolverhampton City Council","http://opendatacommunities.org/id/metropolitan-district-council/wolverhampton","MILLERS JEWELLERS","600.00","Long Service Awards","5944","Gratuities","19/07/2018"
"Wolverhampton City Council","http://opendatacommunities.org/id/metropolitan-district-council/wolverhampton","ROYAL CARPETS","125.00","LAC Transitions Team","5713","Client Allowances","19/07/2018"
"Wolverhampton City Council","http://opendatacommunities.org/id/metropolitan-district-council/wolverhampton","ROYAL BK OF SCOTLAND","250.00","CIN/CP Social Work Unit - Area 6","6011","Financial Assistance In Exceptional Circ","19/07/2018"
"Wolverhampton City Council","http://opendatacommunities.org/id/metropolitan-district-council/wolverhampton","POST OFFICE COUNTER","8.60","Adoption and Residence Team & Allowances","9402","Comms - Postage","19/07/2018"
"Wolverhampton City Council","http://opendatacommunities.org/id/metropolitan-district-council/wolverhampton","TEX MEADOWVALEGAR","35.23","Towers Outdoor Education Centre","5541","Fixtures and Fittings - Purchases","19/07/2018"
"Wolverhampton City Council","http://opendatacommunities.org/id/metropolitan-district-council/wolverhampton","WYNNSTAY ARGICULTURAL","54.58","Towers Outdoor Education Centre","5311","Fixtures and Fittings - Purchases","19/07/2018"
"Wolverhampton City Council","http://opendatacommunities.org/id/metropolitan-district-council/wolverhampton","Amazon UK Marketplace","75.79","EIP Locality 4","5942","Books","19/07/2018"
"Wolverhampton City Council","http://opendatacommunities.org/id/metropolitan-district-council/wolverhampton","Virgin Trains","62.50","Fostering Team & Allowances","4112","Public Transport","19/07/2018"
"Wolverhampton City Council","http://opendatacommunities.org/id/metropolitan-district-council/wolverhampton","WWW.PRCA.ORG.UK","175.00","Communications & Marketing - General","7392","Services - Consultants","19/07/2018"
"Wolverhampton City Council","http://opendatacommunities.org/id/metropolitan-district-council/wolverhampton","WWW.PRCA.ORG.UK","250.00","Communications & Marketing - General","7392","Services - Consultants","19/07/2018"
"Wolverhampton City Council","http://opendatacommunities.org/id/metropolitan-district-council/wolverhampton","WEST MID TRAVEL","436.90","IMPACT","4131","Public Transport","19/07/2018"
"Wolverhampton City Council","http://opendatacommunities.org/id/metropolitan-district-council/wolverhampton","CRESTA WORLD TRAVEL","22.00","Admin & Support","4722","Public Transport","19/07/2018"
"Wolverhampton City Council","http://opendatacommunities.org/id/metropolitan-district-council/wolverhampton","WWW.CORAM.ORG.UK","18.95","LAC Education Team (LACE)","8398","Services - Supplies & Services to users","19/07/2018"
"Wolverhampton City Council","http://opendatacommunities.org/id/metropolitan-district-council/wolverhampton","RAMADA INNS","72.00","Service Director City Economy","3637","Conference Expenses","19/07/2018"
"Wolverhampton City Council","http://opendatacommunities.org/id/metropolitan-district-council/wolverhampton","Trainline","19.45","SEN Special Education Admin","4112","Public Transport","19/07/2018"
"Wolverhampton City Council","http://opendatacommunities.org/id/metropolitan-district-council/wolverhampton","ALDI 94 772","16.43","Employment Programmes","5411","Provisions (Not for resale)","19/07/2018"
"Wolverhampton City Council","http://opendatacommunities.org/id/metropolitan-district-council/wolverhampton","UPPAL SWEET SHOP","20.83","Employment Programmes","5812","Educ Trips, Holidays, Outings, Activity","19/07/2018"
"Wolverhampton City Council","http://opendatacommunities.org/id/metropolitan-district-council/wolverhampton","Amazon UK Marketplace","2.69","Global Budgets","5942","Books","19/07/2018"
"Wolverhampton City Council","http://opendatacommunities.org/id/metropolitan-district-council/wolverhampton","Trainline","186.00","Legal Services","4112","Public Transport","19/07/2018"
"Wolverhampton City Council","http://opendatacommunities.org/id/metropolitan-district-council/wolverhampton","THE COAL AUTHORITY","190.32","Disposal Costs","9399","Services - Professional Fees","19/07/2018"
"Wolverhampton City Council","http://opendatacommunities.org/id/metropolitan-district-council/wolverhampton","THEWAYYOUTHZONE.OR","12.00","CIN/CP Social Work Unit - Area 5","8699","Section 17","19/07/2018"
"Wolverhampton City Council","http://opendatacommunities.org/id/metropolitan-district-council/wolverhampton","THEWAYYOUTHZONE.OR","5.00","CIN/CP Social Work Unit - Area 5","8699","Section 17","19/07/2018"
"Wolverhampton City Council","http://opendatacommunities.org/id/metropolitan-district-council/wolverhampton","NEWHAMPTON ARTS CENTRE","30.00","CIN/CP Social Work Unit - Area 5","5971","Section 17","19/07/2018"
"Wolverhampton City Council","http://opendatacommunities.org/id/metropolitan-district-council/wolverhampton","PAYPAL  INTERNATION","46.50","EIP Locality 5","8699","Subscriptions","19/07/2018"
"Wolverhampton City Council","http://opendatacommunities.org/id/metropolitan-district-council/wolverhampton","NCE COMPUTER GROUP","157.50","Strategic ICTS (ICT Serv Budget)","7372","Computing - Purchase of Software","19/07/2018"
"Wolverhampton City Council","http://opendatacommunities.org/id/metropolitan-district-council/wolverhampton","NCE COMPUTER GROUP","87.50","Strategic ICTS (ICT Serv Budget)","7372","Computing - Purchase of Software","19/07/2018"
"Wolverhampton City Council","http://opendatacommunities.org/id/metropolitan-district-council/wolverhampton","Amazon EU","64.61","Building Consultancy","5969","Equipment - Purchase","19/07/2018"
"Wolverhampton City Council","http://opendatacommunities.org/id/metropolitan-district-council/wolverhampton","CRITCHLEY HARDWARE","5.75","Adult Services - East","5251","Equipment - Purchase","19/07/2018"
"Wolverhampton City Council","http://opendatacommunities.org/id/metropolitan-district-council/wolverhampton","NATWEST BANK","200.00","Democratic Support","6011","Public Transport","19/07/2018"
"Wolverhampton City Council","http://opendatacommunities.org/id/metropolitan-district-council/wolverhampton","TESCO STORES 5194","156.78","Towers Outdoor Education Centre","5411","Provisions (Not for resale)","19/07/2018"
"Wolverhampton City Council","http://opendatacommunities.org/id/metropolitan-district-council/wolverhampton","MONARCH CLEANERS LTD","457.08","Towers Outdoor Education Centre","7216","Laundry Expenses","19/07/2018"
"Wolverhampton City Council","http://opendatacommunities.org/id/metropolitan-district-council/wolverhampton","OUTDOOR & CYCLE CONCEP","39.00","Towers Outdoor Education Centre","5999","Equipment - Purchase","19/07/2018"
"Wolverhampton City Council","http://opendatacommunities.org/id/metropolitan-district-council/wolverhampton","PAYPAL  ROSSHANDLIN","193.43","Strategic ICTS (ICT Serv Budget)","8931","Services - Professional Fees","19/07/2018"
"Wolverhampton City Council","http://opendatacommunities.org/id/metropolitan-district-council/wolverhampton","SCREWFIX DIRECT LT","8.32","Emergency Duty Team","5211","Materials","19/07/2018"
"Wolverhampton City Council","http://opendatacommunities.org/id/metropolitan-district-council/wolverhampton","ARGOS RETAIL GROUP","-199.98","Older People Provider Management","5310","Equipment - Purchase","19/07/2018"
"Wolverhampton City Council","http://opendatacommunities.org/id/metropolitan-district-council/wolverhampton","WWW.IKEA.COM","162.50","EIP Locality 3","5712","Grant Payments","19/07/2018"
"Wolverhampton City Council","http://opendatacommunities.org/id/metropolitan-district-council/wolverhampton","POST OFFICE COUNTER","4.45","LAC Transitions Team","9402","Comms - Postage","19/07/2018"
"Wolverhampton City Council","http://opendatacommunities.org/id/metropolitan-district-council/wolverhampton","MAYFAIR CARPETS","174.17","LAC Transitions Team","5713","Client Allowances","19/07/2018"
"Wolverhampton City Council","http://opendatacommunities.org/id/metropolitan-district-council/wolverhampton","WWW.ARGOS.CO.UK","181.85","Community Enablement","5310","Equipment - Purchase","19/07/2018"
"Wolverhampton City Council","http://opendatacommunities.org/id/metropolitan-district-council/wolverhampton","SAINSBURYS (2340)","11.45","Civic Centre Catering","5411","Provisions (Not for resale)","19/07/2018"
"Wolverhampton City Council","http://opendatacommunities.org/id/metropolitan-district-council/wolverhampton","WWW.ACTASSOCIATES.CO.U","295.00","Central Training","8999","Training Expenses","19/07/2018"
"Wolverhampton City Council","http://opendatacommunities.org/id/metropolitan-district-council/wolverhampton","RICARDO-AEA LTD","1,199.00","Central Training","7392","Training Expenses","19/07/2018"
"Wolverhampton City Council","http://opendatacommunities.org/id/metropolitan-district-council/wolverhampton","GO CARZ","11.70","Legal Services","4121","Public Transport","19/07/2018"
"Wolverhampton City Council","http://opendatacommunities.org/id/metropolitan-district-council/wolverhampton","123-REG.CO.UK","171.89","WV Active Marketing","4816","Computing - Purchase of Software","18/07/2018"
"Wolverhampton City Council","http://opendatacommunities.org/id/metropolitan-district-council/wolverhampton","123-REG.CO.UK","10.42","City Direct","4816","Computing - Purchase of Software","18/07/2018"
"Wolverhampton City Council","http://opendatacommunities.org/id/metropolitan-district-council/wolverhampton","Virgin Trains","-9.70","Adoption and Residence Team & Allowances","4112","Public Transport","18/07/2018"
"Wolverhampton City Council","http://opendatacommunities.org/id/metropolitan-district-council/wolverhampton","WWW.PROVISIO.COM","366.36","Strategic ICTS (ICT Serv Budget)","5734","Computing - Purchase of Software","18/07/2018"
"Wolverhampton City Council","http://opendatacommunities.org/id/metropolitan-district-council/wolverhampton","Trainline","262.90","LAC Transitions Team","4112","Public Transport","18/07/2018"
"Wolverhampton City Council","http://opendatacommunities.org/id/metropolitan-district-council/wolverhampton","ASDA SUPERSTORE","35.90","EIP Locality 6","5411","Provisions (Not for resale)","18/07/2018"
"Wolverhampton City Council","http://opendatacommunities.org/id/metropolitan-district-council/wolverhampton","Virgin Trains","-9.70","Adoption and Residence Team & Allowances","4112","Public Transport","18/07/2018"
"Wolverhampton City Council","http://opendatacommunities.org/id/metropolitan-district-council/wolverhampton","AMAZON SVCS EU-UK AMAZ","18.34","EIP Locality 5","5942","Books","18/07/2018"
"Wolverhampton City Council","http://opendatacommunities.org/id/metropolitan-district-council/wolverhampton","NATWEST BANK","10.00","Ernest Bold Court","6011","Services - Supplies & Services to users","18/07/2018"
"Wolverhampton City Council","http://opendatacommunities.org/id/metropolitan-district-council/wolverhampton","THE CONSORTIUM/WMS","179.74","Education And Access","5968","Subscriptions","18/07/2018"
"Wolverhampton City Council","http://opendatacommunities.org/id/metropolitan-district-council/wolverhampton","WP-CENTRAL TAXIS L","13.92","CIN/CP Social Work Unit - Area 7","4121","Client Transport","18/07/2018"
"Wolverhampton City Council","http://opendatacommunities.org/id/metropolitan-district-council/wolverhampton","ARGOS RETAIL GROUP","54.98","EIP Locality 1","5310","Grant Payments","18/07/2018"
"Wolverhampton City Council","http://opendatacommunities.org/id/metropolitan-district-council/wolverhampton","Amazon UK Marketplace","3.32","Global Budgets","5942","Stationery","18/07/2018"
"Wolverhampton City Council","http://opendatacommunities.org/id/metropolitan-district-council/wolverhampton","ALDI 78 772","165.18","Upper Pendeford Farm Childrens Home","5411","Provisions (Not for resale)","18/07/2018"
"Wolverhampton City Council","http://opendatacommunities.org/id/metropolitan-district-council/wolverhampton","DFS Trading Limited","1,657.00","Upper Pendeford Farm Childrens Home","5712","Equipment - Purchase","18/07/2018"
"Wolverhampton City Council","http://opendatacommunities.org/id/metropolitan-district-council/wolverhampton","SCREWFIX WOLVERHAM","-33.32","Site works","5211","Equipment - Purchase","18/07/2018"
"Wolverhampton City Council","http://opendatacommunities.org/id/metropolitan-district-council/wolverhampton","Amazon UK Marketplace","69.97","Parks - Ranger Service","5942","Equipment - Purchase","18/07/2018"
"Wolverhampton City Council","http://opendatacommunities.org/id/metropolitan-district-council/wolverhampton","AMZ UK Digital Dwnload","548.78","Landscape","5735","Computing - Purchase of Software","18/07/2018"
"Wolverhampton City Council","http://opendatacommunities.org/id/metropolitan-district-council/wolverhampton","Virgin Trains","36.30","Members Expenses","4112","Public Transport","18/07/2018"
"Wolverhampton City Council","http://opendatacommunities.org/id/metropolitan-district-council/wolverhampton","Amazon UK Marketplace","29.27","Northicote Farm","5942","Equipment - Purchase","18/07/2018"
"Wolverhampton City Council","http://opendatacommunities.org/id/metropolitan-district-council/wolverhampton","WOLVERHAMPTON SELF STO","85.00","EIP Locality 1","4214","Grant Payments","18/07/2018"
"Wolverhampton City Council","http://opendatacommunities.org/id/metropolitan-district-council/wolverhampton","ASDA SUPERSTORE","1.77","Specialist Support Service - North","5411","Catering","18/07/2018"
"Wolverhampton City Council","http://opendatacommunities.org/id/metropolitan-district-council/wolverhampton","CardtronicsUK","200.00","MASH","6011","No Recourse to Public Funds","18/07/2018"
"Wolverhampton City Council","http://opendatacommunities.org/id/metropolitan-district-council/wolverhampton","WIX.COM","93.13","Technical Support","5968","Subscriptions","18/07/2018"
"Wolverhampton City Council","http://opendatacommunities.org/id/metropolitan-district-council/wolverhampton","POUNDLAND LTD 1463","4.21","Education And Access","5310","Materials","18/07/2018"
"Wolverhampton City Council","http://opendatacommunities.org/id/metropolitan-district-council/wolverhampton","Amazon EU","3.99","Education And Access","5969","Books","18/07/2018"
"Wolverhampton City Council","http://opendatacommunities.org/id/metropolitan-district-council/wolverhampton","LONDONEMBLE","240.20","Education And Access","8299","Equipment - Hire","18/07/2018"
"Wolverhampton City Council","http://opendatacommunities.org/id/metropolitan-district-council/wolverhampton","Amazon EU","10.99","Education And Access","5969","Books","18/07/2018"
"Wolverhampton City Council","http://opendatacommunities.org/id/metropolitan-district-council/wolverhampton","Amazon EU","192.50","Environmental Health - Pub Prot - Gen","5969","Equipment - Purchase","18/07/2018"
"Wolverhampton City Council","http://opendatacommunities.org/id/metropolitan-district-council/wolverhampton","Amazon Prime","-.82","Global Budgets","5968","Subscriptions","18/07/2018"
"Wolverhampton City Council","http://opendatacommunities.org/id/metropolitan-district-council/wolverhampton","Amazon UK Marketplace",".34","Global Budgets","5942","Stationery","18/07/2018"
"Wolverhampton City Council","http://opendatacommunities.org/id/metropolitan-district-council/wolverhampton","Amazon Prime",".82","Global Budgets","5968","Subscriptions","18/07/2018"
"Wolverhampton City Council","http://opendatacommunities.org/id/metropolitan-district-council/wolverhampton","B & Q 1169","24.91","Technician","5211","Materials","18/07/2018"
"Wolverhampton City Council","http://opendatacommunities.org/id/metropolitan-district-council/wolverhampton","B&M RETAIL","199.48","LAC Transitions Team","5310","Independant Living Allowance","18/07/2018"
"Wolverhampton City Council","http://opendatacommunities.org/id/metropolitan-district-council/wolverhampton","CT WOLVERHAMPTON","79.17","LAC Transitions Team","8398","Independant Living Allowance","18/07/2018"
"Wolverhampton City Council","http://opendatacommunities.org/id/metropolitan-district-council/wolverhampton","B&M RETAIL","271.83","LAC Transitions Team","5310","Independant Living Allowance","18/07/2018"
"Wolverhampton City Council","http://opendatacommunities.org/id/metropolitan-district-council/wolverhampton","Trainline","255.40","Safeguarding Admin Resource","4112","Public Transport","18/07/2018"
"Wolverhampton City Council","http://opendatacommunities.org/id/metropolitan-district-council/wolverhampton","Trainline","20.65","Safeguarding Admin Resource","4112","Public Transport","18/07/2018"
"Wolverhampton City Council","http://opendatacommunities.org/id/metropolitan-district-council/wolverhampton","000002200500000","250.00","CIN/CP Social Work Unit - Area 6","6011","Financial Assistance In Exceptional Circ","18/07/2018"
"Wolverhampton City Council","http://opendatacommunities.org/id/metropolitan-district-council/wolverhampton","Amazon UK Marketplace","81.60","EIP Locality 4","5942","Books","18/07/2018"
"Wolverhampton City Council","http://opendatacommunities.org/id/metropolitan-district-council/wolverhampton","Virgin Trains","266.80","Fostering Team & Allowances","4112","Public Transport","18/07/2018"
"Wolverhampton City Council","http://opendatacommunities.org/id/metropolitan-district-council/wolverhampton","Virgin Trains","146.80","Fostering Team & Allowances","4112","Public Transport","18/07/2018"
"Wolverhampton City Council","http://opendatacommunities.org/id/metropolitan-district-council/wolverhampton","Virgin Trains","68.30","Fostering Team & Allowances","4112","Public Transport","18/07/2018"
"Wolverhampton City Council","http://opendatacommunities.org/id/metropolitan-district-council/wolverhampton","000002200500000","250.00","Headstart - Young People Engagement","6011","Financial Assistance In Exceptional Circ","18/07/2018"
"Wolverhampton City Council","http://opendatacommunities.org/id/metropolitan-district-council/wolverhampton","POST OFFICE COUNTER","28.75","B-Safe","9402","Comms - Postage","18/07/2018"
"Wolverhampton City Council","http://opendatacommunities.org/id/metropolitan-district-council/wolverhampton","ALDI 94 772","13.41","Admin & Support","5411","Provisions (Not for resale)","18/07/2018"
"Wolverhampton City Council","http://opendatacommunities.org/id/metropolitan-district-council/wolverhampton","POUNDLAND LTD 1463","8.67","Admin & Support","5310","Equipment - Purchase","18/07/2018"
"Wolverhampton City Council","http://opendatacommunities.org/id/metropolitan-district-council/wolverhampton","123-REG.CO.UK","29.99","WV Active Marketing","4816","Computing - Purchase of Software","18/07/2018"
"Wolverhampton City Council","http://opendatacommunities.org/id/metropolitan-district-council/wolverhampton","WWW.ICO.GOV.UK","40.00","Members Expenses","9399","Subscriptions","17/07/2018"
"Wolverhampton City Council","http://opendatacommunities.org/id/metropolitan-district-council/wolverhampton","WWW.ICO.GOV.UK","40.00","Members Expenses","9399","Subscriptions","17/07/2018"
"Wolverhampton City Council","http://opendatacommunities.org/id/metropolitan-district-council/wolverhampton","Amazon UK Marketplace","7.03","Northicote Farm","5942","Equipment - Purchase","17/07/2018"
"Wolverhampton City Council","http://opendatacommunities.org/id/metropolitan-district-council/wolverhampton","CUMMINGS BROTHERS LOCK","66.67","Public Conveniences","7399","R&M - Departmental planned (external)","17/07/2018"
"Wolverhampton City Council","http://opendatacommunities.org/id/metropolitan-district-council/wolverhampton","Amazon EU","66.66","Strategic ICTS (ICT Serv Budget)","5969","Equipment - Purchase","17/07/2018"
"Wolverhampton City Council","http://opendatacommunities.org/id/metropolitan-district-council/wolverhampton","ASDA GROCERIES ONLINE","32.93","Ernest Bold Court","5411","Provisions (Not for resale)","17/07/2018"
"Wolverhampton City Council","http://opendatacommunities.org/id/metropolitan-district-council/wolverhampton","Trainline","18.15","CIN/CP Social Work Unit - Area 8","4112","Public Transport","17/07/2018"
"Wolverhampton City Council","http://opendatacommunities.org/id/metropolitan-district-council/wolverhampton","WCC MOTO PAYMENTS","10.00","Specialist Support Service - North","9399","Services - Fees and Charges","17/07/2018"
"Wolverhampton City Council","http://opendatacommunities.org/id/metropolitan-district-council/wolverhampton","COZENS & COLE LTD","370.74","Civic Centre Repairs & Maintenance","5251","Equipment - Purchase","17/07/2018"
"Wolverhampton City Council","http://opendatacommunities.org/id/metropolitan-district-council/wolverhampton","WWW.ICO.GOV.UK","40.00","Members Expenses","9399","Subscriptions","17/07/2018"
"Wolverhampton City Council","http://opendatacommunities.org/id/metropolitan-district-council/wolverhampton","WWW.ICO.GOV.UK","40.00","Members Expenses","9399","Subscriptions","17/07/2018"
"Wolverhampton City Council","http://opendatacommunities.org/id/metropolitan-district-council/wolverhampton","WWW.ICO.GOV.UK","40.00","Members Expenses","9399","Subscriptions","17/07/2018"
"Wolverhampton City Council","http://opendatacommunities.org/id/metropolitan-district-council/wolverhampton","WWW.ICO.GOV.UK","40.00","Members Expenses","9399","Subscriptions","17/07/2018"
"Wolverhampton City Council","http://opendatacommunities.org/id/metropolitan-district-council/wolverhampton","WWW.ICO.GOV.UK","60.00","Members Expenses","9399","Subscriptions","17/07/2018"
"Wolverhampton City Council","http://opendatacommunities.org/id/metropolitan-district-council/wolverhampton","WWW.ICO.GOV.UK","40.00","Members Expenses","9399","Subscriptions","17/07/2018"
"Wolverhampton City Council","http://opendatacommunities.org/id/metropolitan-district-council/wolverhampton","SPAR SIOP TANDDERWEN","332.20","Towers Outdoor Education Centre","5411","Provisions (Not for resale)","17/07/2018"
"Wolverhampton City Council","http://opendatacommunities.org/id/metropolitan-district-council/wolverhampton","POST OFFICE COUNTER","20.10","Towers Outdoor Education Centre","9402","Comms - Postage","17/07/2018"
"Wolverhampton City Council","http://opendatacommunities.org/id/metropolitan-district-council/wolverhampton","THE POST OFFICE","68.25","CIN/CP Social Work Unit - Area 6","9402","Section 17","17/07/2018"
"Wolverhampton City Council","http://opendatacommunities.org/id/metropolitan-district-council/wolverhampton","MARKS&SPENCER PLC","49.50","EIP Locality 4","5411","Equipment - Purchase","17/07/2018"
"Wolverhampton City Council","http://opendatacommunities.org/id/metropolitan-district-council/wolverhampton","POST OFFICE COUNTER","2.97","Fostering Team & Allowances","9402","Comms - Postage","17/07/2018"
"Wolverhampton City Council","http://opendatacommunities.org/id/metropolitan-district-council/wolverhampton","AMAZON SVCS EU-UK AMAZ","12.07","Headstart Phase 3","5942","Materials","17/07/2018"
"Wolverhampton City Council","http://opendatacommunities.org/id/metropolitan-district-council/wolverhampton","WOLVERHAMPTON SST","8.80","Headstart - Young People Engagement","4112","Public Transport","17/07/2018"
"Wolverhampton City Council","http://opendatacommunities.org/id/metropolitan-district-council/wolverhampton","3C_ ECP Cornhill","4.17","Headstart - Young People Engagement","7523","Parking Fees","17/07/2018"
"Wolverhampton City Council","http://opendatacommunities.org/id/metropolitan-district-council/wolverhampton","WISEPOPS","53.72","City Direct","7372","Computing - Purchase of Software","17/07/2018"
"Wolverhampton City Council","http://opendatacommunities.org/id/metropolitan-district-council/wolverhampton","SAINSBURYS PFS (1340)","1.67","Mayoral Expenses","5541","Vehicle Maintenance - Repairs","17/07/2018"
"Wolverhampton City Council","http://opendatacommunities.org/id/metropolitan-district-council/wolverhampton","Trainline","20.65","Service Director City Environment","4112","Public Transport","17/07/2018"
"Wolverhampton City Council","http://opendatacommunities.org/id/metropolitan-district-council/wolverhampton","B & Q 1243","8.52","Public Conveniences","5211","R&M - Departmental planned (external)","17/07/2018"
"Wolverhampton City Council","http://opendatacommunities.org/id/metropolitan-district-council/wolverhampton","WOLVERHAMPTON CC","4.58","Headstart Phase 3","7523","Parking Fees","17/07/2018"
"Wolverhampton City Council","http://opendatacommunities.org/id/metropolitan-district-council/wolverhampton","HOME BARGAINS","4.40","LAC Transitions Team","5251","Accommodation Costs","17/07/2018"
"Wolverhampton City Council","http://opendatacommunities.org/id/metropolitan-district-council/wolverhampton","LOYD WEDNESFIELD WOLVE","300.00","EIP Locality 8","6011","Grant Payments","17/07/2018"
"Wolverhampton City Council","http://opendatacommunities.org/id/metropolitan-district-council/wolverhampton","YMLP.COM","105.00","Audience Development","7372","Marketing \ Non-staff advertising","17/07/2018"
"Wolverhampton City Council","http://opendatacommunities.org/id/metropolitan-district-council/wolverhampton","POST OFFICE COUNTER","8.60","Adoption and Residence Team & Allowances","9402","Comms - Postage","17/07/2018"
"Wolverhampton City Council","http://opendatacommunities.org/id/metropolitan-district-council/wolverhampton","CO-OP GROUP 070228","13.49","Towers Outdoor Education Centre","5411","Provisions (Not for resale)","17/07/2018"
"Wolverhampton City Council","http://opendatacommunities.org/id/metropolitan-district-council/wolverhampton","O E METCALFE","442.00","Towers Outdoor Education Centre","5499","Provisions (Not for resale)","17/07/2018"
"Wolverhampton City Council","http://opendatacommunities.org/id/metropolitan-district-council/wolverhampton","SPAR SIOP TANDDERWEN","3.50","Towers Outdoor Education Centre","5411","Provisions (Not for resale)","17/07/2018"
"Wolverhampton City Council","http://opendatacommunities.org/id/metropolitan-district-council/wolverhampton","DULUX DECORATOR CENTRE","140.00","Technician","5198","Materials","16/07/2018"
"Wolverhampton City Council","http://opendatacommunities.org/id/metropolitan-district-council/wolverhampton","NCP WOLVERHAMPTON CHUR","2.50","Headstart Phase 3","7523","Parking Fees","16/07/2018"
"Wolverhampton City Council","http://opendatacommunities.org/id/metropolitan-district-council/wolverhampton","Amazon EU","12.06","Headstart Phase 3","5969","Computing - Consumables","16/07/2018"
"Wolverhampton City Council","http://opendatacommunities.org/id/metropolitan-district-council/wolverhampton","Amazon Prime","6.66","Admin & Support","5968","Subscriptions","16/07/2018"
"Wolverhampton City Council","http://opendatacommunities.org/id/metropolitan-district-council/wolverhampton","FACEBK D6YEXHAAR2","355.19","Communications & Marketing - General","7311","Marketing \ Non-staff advertising","16/07/2018"
"Wolverhampton City Council","http://opendatacommunities.org/id/metropolitan-district-council/wolverhampton","HAMPSHIREFL","68.35","Wolverhampton Indoor and Open Market","5949","Materials","16/07/2018"
"Wolverhampton City Council","http://opendatacommunities.org/id/metropolitan-district-council/wolverhampton","Amazon Prime","6.66","EIP Locality 1","5968","Subscriptions","16/07/2018"
"Wolverhampton City Council","http://opendatacommunities.org/id/metropolitan-district-council/wolverhampton","Amazon UK Marketplace","11.39","Children & Young People Support Costs","5942","Stationery","16/07/2018"
"Wolverhampton City Council","http://opendatacommunities.org/id/metropolitan-district-council/wolverhampton","Amazon EU","30.04","Cleaning of Buildings - General","5969","Equipment - Purchase","16/07/2018"
"Wolverhampton City Council","http://opendatacommunities.org/id/metropolitan-district-council/wolverhampton","WILKO RETAIL LIMIT","8.08","Blakenhall Commty & Healthy Living Ctr","5722","Equipment - Purchase","16/07/2018"
"Wolverhampton City Council","http://opendatacommunities.org/id/metropolitan-district-council/wolverhampton","PAYPAL  123REGLIMIT","59.94","Technical Support","4816","Computing - Purchase of Software","16/07/2018"
"Wolverhampton City Council","http://opendatacommunities.org/id/metropolitan-district-council/wolverhampton","CARPET CENTRE LTD","166.67","EIP Locality 3","5713","Grant Payments","16/07/2018"
"Wolverhampton City Council","http://opendatacommunities.org/id/metropolitan-district-council/wolverhampton","B & Q 1243","10.76","Ernest Bold Court","5211","Equipment - R & M","16/07/2018"
"Wolverhampton City Council","http://opendatacommunities.org/id/metropolitan-district-council/wolverhampton","BOOKER LIMITED WOLVERH","120.46","Licensing - General","5811","Catering","16/07/2018"
"Wolverhampton City Council","http://opendatacommunities.org/id/metropolitan-district-council/wolverhampton","Amazon UK Marketplace","173.60","Inclusion Support","5942","Stationery","16/07/2018"
"Wolverhampton City Council","http://opendatacommunities.org/id/metropolitan-district-council/wolverhampton","Amazon EU","31.04","Specialist Support Service - North","5969","Stationery","16/07/2018"
"Wolverhampton City Council","http://opendatacommunities.org/id/metropolitan-district-council/wolverhampton","Amazon UK Marketplace","17.03","Ernest Bold Court","5942","Cleaning Supplies and Materials","16/07/2018"
"Wolverhampton City Council","http://opendatacommunities.org/id/metropolitan-district-council/wolverhampton","WM MORRISONS","5.00","Safeguarding Admin Resource","5411","Provisions (Not for resale)","16/07/2018"
"Wolverhampton City Council","http://opendatacommunities.org/id/metropolitan-district-council/wolverhampton","ITUNES.COM/BILL","2.07","LAC Education Team (LACE)","5735","Computing - Purchase of Software","16/07/2018"
"Wolverhampton City Council","http://opendatacommunities.org/id/metropolitan-district-council/wolverhampton","Virgin Trains","184.90","Adoption and Residence Team & Allowances","4112","Public Transport","16/07/2018"
"Wolverhampton City Council","http://opendatacommunities.org/id/metropolitan-district-council/wolverhampton","WWW.MOVERSANDSHAKERS.U","240.00","Strategic Director Place","8699","Subscriptions","16/07/2018"
"Wolverhampton City Council","http://opendatacommunities.org/id/metropolitan-district-council/wolverhampton","Trainline","167.80","Service Director City Environment","4112","Public Transport","16/07/2018"
"Wolverhampton City Council","http://opendatacommunities.org/id/metropolitan-district-council/wolverhampton","Trainline","-60.00","Legal Services","4112","Public Transport","16/07/2018"
"Wolverhampton City Council","http://opendatacommunities.org/id/metropolitan-district-council/wolverhampton","ASDA GROCERIES ONLINE","3.00","Upper Pendeford Farm Childrens Home","5411","Provisions (Not for resale)","16/07/2018"
"Wolverhampton City Council","http://opendatacommunities.org/id/metropolitan-district-council/wolverhampton","ASDA GROCERIES ONLINE","72.40","Upper Pendeford Farm Childrens Home","5411","Provisions (Not for resale)","16/07/2018"
"Wolverhampton City Council","http://opendatacommunities.org/id/metropolitan-district-council/wolverhampton","Amazon UK Marketplace","4.95","ICT Services","5942","Equipment - Purchase","16/07/2018"
"Wolverhampton City Council","http://opendatacommunities.org/id/metropolitan-district-council/wolverhampton","Amazon UK Marketplace","56.24","ICT Services","5942","Equipment - Purchase","16/07/2018"
"Wolverhampton City Council","http://opendatacommunities.org/id/metropolitan-district-council/wolverhampton","ASDA GROCERIES ONLINE","49.01","Ernest Bold Court","5411","Provisions (Not for resale)","16/07/2018"
"Wolverhampton City Council","http://opendatacommunities.org/id/metropolitan-district-council/wolverhampton","JOHNSTONES DEC CENTRE","20.86","Culwell Street Depot","5231","R&M - Departmental planned (external)","16/07/2018"
"Wolverhampton City Council","http://opendatacommunities.org/id/metropolitan-district-council/wolverhampton","Trainline","28.55","Private Sector Housing","4112","Public Transport","16/07/2018"
"Wolverhampton City Council","http://opendatacommunities.org/id/metropolitan-district-council/wolverhampton","B&M RETAIL LTD","16.66","LAC Transitions Team","5310","Independant Living Allowance","16/07/2018"
"Wolverhampton City Council","http://opendatacommunities.org/id/metropolitan-district-council/wolverhampton","HOBBY CRAFT LTD","20.75","Childrens with Disabilities Team","5970","Materials","16/07/2018"
"Wolverhampton City Council","http://opendatacommunities.org/id/metropolitan-district-council/wolverhampton","NOVOTEL HOTELS","366.54","Adoption and Residence Team & Allowances","3642","Accommodation Costs","16/07/2018"
"Wolverhampton City Council","http://opendatacommunities.org/id/metropolitan-district-council/wolverhampton","PREMIER INN","116.00","Adoption and Residence Team & Allowances","3811","Comms - Postage","16/07/2018"
"Wolverhampton City Council","http://opendatacommunities.org/id/metropolitan-district-council/wolverhampton","CardtronicsUK","250.00","CIN/CP Social Work Unit - Area 6","6011","Financial Assistance In Exceptional Circ","16/07/2018"
"Wolverhampton City Council","http://opendatacommunities.org/id/metropolitan-district-council/wolverhampton","THE POST OFFICE","68.25","CIN/CP Social Work Unit - Area 6","9402","Section 17","16/07/2018"
"Wolverhampton City Council","http://opendatacommunities.org/id/metropolitan-district-council/wolverhampton","BAKER ROSS LTD","185.25","Education And Access","5970","Materials","16/07/2018"
"Wolverhampton City Council","http://opendatacommunities.org/id/metropolitan-district-council/wolverhampton","FACEBK K6YEXHAAR2","144.81","Communications & Marketing - General","7311","Marketing \ Non-staff advertising","16/07/2018"
"Wolverhampton City Council","http://opendatacommunities.org/id/metropolitan-district-council/wolverhampton","Trainline","42.00","CIN/CP Social Work Unit - Area 4","4112","Section 17","16/07/2018"
"Wolverhampton City Council","http://opendatacommunities.org/id/metropolitan-district-council/wolverhampton","Amazon UK Marketplace","12.41","Community Enablement","5942","Books","16/07/2018"
"Wolverhampton City Council","http://opendatacommunities.org/id/metropolitan-district-council/wolverhampton","THEWAYYOUTHZONE.OR","120.00","EIP Locality 5","8699","Educ Trips, Holidays, Outings, Activity","16/07/2018"
"Wolverhampton City Council","http://opendatacommunities.org/id/metropolitan-district-council/wolverhampton","TICKETMASTER UK","10.79","EIP Locality 5","7922","Educ Trips, Holidays, Outings, Activity","16/07/2018"
"Wolverhampton City Council","http://opendatacommunities.org/id/metropolitan-district-council/wolverhampton","WWW.CARESHOP.CO.UK","84.64","Ernest Bold Court","5999","Cleaning Supplies and Materials","16/07/2018"
"Wolverhampton City Council","http://opendatacommunities.org/id/metropolitan-district-council/wolverhampton","WICKES","10.67","Fleet Management","5211","Materials","16/07/2018"
"Wolverhampton City Council","http://opendatacommunities.org/id/metropolitan-district-council/wolverhampton","DULUX DECORATOR CENTRE","62.18","Singh Twins","5198","Materials","13/07/2018"
"Wolverhampton City Council","http://opendatacommunities.org/id/metropolitan-district-council/wolverhampton","TIMPSON LTD","80.00","Democratic Support","7251","Equipment - Purchase","13/07/2018"
"Wolverhampton City Council","http://opendatacommunities.org/id/metropolitan-district-council/wolverhampton","LOYD 37 CHURCH STREET","80.00","EIP Locality 8","6011","Services - Professional Fees","13/07/2018"
"Wolverhampton City Council","http://opendatacommunities.org/id/metropolitan-district-council/wolverhampton","000002200500000","200.00","Childrens with Disabilities Team","6011","Financial Assistance In Exceptional Circ","13/07/2018"
"Wolverhampton City Council","http://opendatacommunities.org/id/metropolitan-district-council/wolverhampton","POST OFFICE COUNTER","10.05","Adoption and Residence Team & Allowances","9402","Comms - Postage","13/07/2018"
"Wolverhampton City Council","http://opendatacommunities.org/id/metropolitan-district-council/wolverhampton","THE WORKS",".83","Delivery & OCE Development","5310","Equipment - Purchase","13/07/2018"
"Wolverhampton City Council","http://opendatacommunities.org/id/metropolitan-district-council/wolverhampton","RYMAN","4.98","Delivery & OCE Development","5943","Stationery","13/07/2018"
"Wolverhampton City Council","http://opendatacommunities.org/id/metropolitan-district-council/wolverhampton","Virgin Trains","189.80","Fostering Team & Allowances","4112","Public Transport","13/07/2018"
"Wolverhampton City Council","http://opendatacommunities.org/id/metropolitan-district-council/wolverhampton","WOLVERHAMPTON CC","10.42","IMPACT","7523","Car Allowances","13/07/2018"
"Wolverhampton City Council","http://opendatacommunities.org/id/metropolitan-district-council/wolverhampton","MARKS&SPENCER PLC SACA","20.00","Admin & Support","5411","Hospitality","13/07/2018"
"Wolverhampton City Council","http://opendatacommunities.org/id/metropolitan-district-council/wolverhampton","Trainline","90.10","LAC Transitions Team","4112","Client Allowances","13/07/2018"
"Wolverhampton City Council","http://opendatacommunities.org/id/metropolitan-district-council/wolverhampton","Amazon EU","117.49","Strategic ICTS (ICT Serv Budget)","5969","Equipment - Purchase","13/07/2018"
"Wolverhampton City Council","http://opendatacommunities.org/id/metropolitan-district-council/wolverhampton","ASDA GROCERIES ONLINE","-2.00","Upper Pendeford Farm Childrens Home","5411","Provisions (Not for resale)","13/07/2018"
"Wolverhampton City Council","http://opendatacommunities.org/id/metropolitan-district-council/wolverhampton","ASDA SUPERSTORE","32.76","Upper Pendeford Farm Childrens Home","5411","Provisions (Not for resale)","13/07/2018"
"Wolverhampton City Council","http://opendatacommunities.org/id/metropolitan-district-council/wolverhampton","Amazon EU","17.50","Environmental Health - Pub Prot - Gen","5969","Equipment - Purchase","13/07/2018"
"Wolverhampton City Council","http://opendatacommunities.org/id/metropolitan-district-council/wolverhampton","ASDA GROCERIES ONLINE","140.34","Upper Pendeford Farm Childrens Home","5411","Provisions (Not for resale)","13/07/2018"
"Wolverhampton City Council","http://opendatacommunities.org/id/metropolitan-district-council/wolverhampton","GO CARZ","7.70","LAC Team","4121","Financial Assistance In Exceptional Circ","13/07/2018"
"Wolverhampton City Council","http://opendatacommunities.org/id/metropolitan-district-council/wolverhampton","WOLVERHAMPTON T/O","62.80","Mental Health Assessment & Care Mgmt","4112","Public Transport","13/07/2018"
"Wolverhampton City Council","http://opendatacommunities.org/id/metropolitan-district-council/wolverhampton","SCREWFIX DIRECT","127.46","Service Wide","5211","Equipment - Health and Safety","13/07/2018"
"Wolverhampton City Council","http://opendatacommunities.org/id/metropolitan-district-council/wolverhampton","Amazon UK Marketplace","8.93","ICT Services","5942","Equipment - Purchase","13/07/2018"
"Wolverhampton City Council","http://opendatacommunities.org/id/metropolitan-district-council/wolverhampton","TVLICENSING.CO.UK","125.42","Blakenhall Commty & Healthy Living Ctr","7392","Services - General Licences","13/07/2018"
"Wolverhampton City Council","http://opendatacommunities.org/id/metropolitan-district-council/wolverhampton","CardtronicsUK","20.00","EIP Locality 3","6011","Grant Payments","13/07/2018"
"Wolverhampton City Council","http://opendatacommunities.org/id/metropolitan-district-council/wolverhampton","ARGOS RETAIL GROUP","524.95","Private Hire Vehicles","5310","Equipment - Purchase","13/07/2018"
"Wolverhampton City Council","http://opendatacommunities.org/id/metropolitan-district-council/wolverhampton","CURRYS ONLINE","61.63","Private Hire Vehicles","5732","Equipment - Purchase","13/07/2018"
"Wolverhampton City Council","http://opendatacommunities.org/id/metropolitan-district-council/wolverhampton","POST OFFICE COUNTER","6.50","CIN/CP Social Work Unit - Area 7","9402","Section 17","13/07/2018"
"Wolverhampton City Council","http://opendatacommunities.org/id/metropolitan-district-council/wolverhampton","J VAN VLIET BIRMINGHAM","62.25","Creative Studies Delivery Area","5399","Materials","13/07/2018"
"Wolverhampton City Council","http://opendatacommunities.org/id/metropolitan-district-council/wolverhampton","WICKES BUILDING","24.08","Fleet Management","5211","Materials","13/07/2018"
"Wolverhampton City Council","http://opendatacommunities.org/id/metropolitan-district-council/wolverhampton","KONICA MINOLTA BUSINES","249.27","Music Support Team","7399","Equipment - R & M","13/07/2018"
"Wolverhampton City Council","http://opendatacommunities.org/id/metropolitan-district-council/wolverhampton","AMAZON SVCS EU-UK AMAZ","44.75","Parks - Ranger Service","5942","Stationery","13/07/2018"
"Wolverhampton City Council","http://opendatacommunities.org/id/metropolitan-district-council/wolverhampton","THEWAYYOUTHZONE.OR","4.17","EIP Locality 5","8699","Educ Trips, Holidays, Outings, Activity","13/07/2018"
"Wolverhampton City Council","http://opendatacommunities.org/id/metropolitan-district-council/wolverhampton","THEWAYYOUTHZONE.OR","4.17","EIP Locality 5","8699","Educ Trips, Holidays, Outings, Activity","13/07/2018"
"Wolverhampton City Council","http://opendatacommunities.org/id/metropolitan-district-council/wolverhampton","PAYPAL  VALUEPRODUC","64.20","Northicote Farm","8099","Equipment - Purchase","13/07/2018"
"Wolverhampton City Council","http://opendatacommunities.org/id/metropolitan-district-council/wolverhampton","ASDA SUPERSTORE","100.00","CIN/CP Social Work Unit - Area 4","5411","Section 17","12/07/2018"
"Wolverhampton City Council","http://opendatacommunities.org/id/metropolitan-district-council/wolverhampton","WAITROSE 696","73.92","Music Support Team","5411","Stationery","12/07/2018"
"Wolverhampton City Council","http://opendatacommunities.org/id/metropolitan-district-council/wolverhampton","ELITE PRECAST CONCRETE","48.00","Landscape","5211","Equipment - Purchase","12/07/2018"
"Wolverhampton City Council","http://opendatacommunities.org/id/metropolitan-district-council/wolverhampton","GRO HM PASSPORT OFFICE","-7.71","LAC Transitions Team","9399","Client Allowances","12/07/2018"
"Wolverhampton City Council","http://opendatacommunities.org/id/metropolitan-district-council/wolverhampton","QUARTIX LTD","279.00","Strategic ICTS (ICT Serv Budget)","5533","Vehicle Maintenance - Repairs","12/07/2018"
"Wolverhampton City Council","http://opendatacommunities.org/id/metropolitan-district-council/wolverhampton","BUXTONS LTD","157.39","Northicote Farm","5193","Clothing / Uniforms","12/07/2018"
"Wolverhampton City Council","http://opendatacommunities.org/id/metropolitan-district-council/wolverhampton","TESCO STORE 3539","-7.70","Towers Outdoor Education Centre","5411","Provisions (Not for resale)","12/07/2018"
"Wolverhampton City Council","http://opendatacommunities.org/id/metropolitan-district-council/wolverhampton","TESCO DELIVERY SAVER2","3.49","Towers Outdoor Education Centre","5968","Provisions (Not for resale)","12/07/2018"
"Wolverhampton City Council","http://opendatacommunities.org/id/metropolitan-district-council/wolverhampton","TESCO STORES 6667","6.00","Towers Outdoor Education Centre","5411","Provisions (Not for resale)","12/07/2018"
"Wolverhampton City Council","http://opendatacommunities.org/id/metropolitan-district-council/wolverhampton","Amazon UK Marketplace","16.48","Delivery & OCE Development","5942","Books","12/07/2018"
"Wolverhampton City Council","http://opendatacommunities.org/id/metropolitan-district-council/wolverhampton","WWW.ICO.GOV.UK","40.00","Electoral Registration","9399","Services - Fees and Charges","12/07/2018"
"Wolverhampton City Council","http://opendatacommunities.org/id/metropolitan-district-council/wolverhampton","Virgin Trains","40.90","Electoral Registration","4112","Public Transport","12/07/2018"
"Wolverhampton City Council","http://opendatacommunities.org/id/metropolitan-district-council/wolverhampton","Virgin Trains","45.60","Electoral Registration","4112","Public Transport","12/07/2018"
"Wolverhampton City Council","http://opendatacommunities.org/id/metropolitan-district-council/wolverhampton","ASDA STORES","10.28","Fostering Team & Allowances","5411","Provisions (Not for resale)","12/07/2018"
"Wolverhampton City Council","http://opendatacommunities.org/id/metropolitan-district-council/wolverhampton","PUMPKIN CAFE","3.58","Headstart - Young People Engagement","5814","Subsistence","12/07/2018"
"Wolverhampton City Council","http://opendatacommunities.org/id/metropolitan-district-council/wolverhampton","ASDA SUPERSTORE","27.90","Mayoral Expenses","5411","Provisions (Not for resale)","12/07/2018"
"Wolverhampton City Council","http://opendatacommunities.org/id/metropolitan-district-council/wolverhampton","POUNDLAND LTD 1463","5.88","Admin & Support","5310","Catering","12/07/2018"
"Wolverhampton City Council","http://opendatacommunities.org/id/metropolitan-district-council/wolverhampton","POUNDLAND LTD 1463","9.88","Admin & Support","5310","Catering","12/07/2018"
"Wolverhampton City Council","http://opendatacommunities.org/id/metropolitan-district-council/wolverhampton","STOP GAP","5.43","Headstart - Young People Engagement","5812","Subsistence","12/07/2018"
"Wolverhampton City Council","http://opendatacommunities.org/id/metropolitan-district-council/wolverhampton","WOLVERHAMPTON TROPHY C","12.50","Education Business Partnership","5999","Equipment - Purchase","12/07/2018"
"Wolverhampton City Council","http://opendatacommunities.org/id/metropolitan-district-council/wolverhampton","WWW.FITNESS-SUPERSTORE","162.40","Bert Williams Leisure Centre","5941","Equipment - Purchase","12/07/2018"
"Wolverhampton City Council","http://opendatacommunities.org/id/metropolitan-district-council/wolverhampton","Amazon UK Marketplace","249.90","LAC Education Team (LACE)","5942","Books","12/07/2018"
"Wolverhampton City Council","http://opendatacommunities.org/id/metropolitan-district-council/wolverhampton","Amazon UK Marketplace","7.97","LAC Transitions Team","5942","Client Allowances","12/07/2018"
"Wolverhampton City Council","http://opendatacommunities.org/id/metropolitan-district-council/wolverhampton","UNTOUCHABLES","17.07","Cemeteries","5231","Materials","12/07/2018"
"Wolverhampton City Council","http://opendatacommunities.org/id/metropolitan-district-council/wolverhampton","MENTIMETER","93.26","Healthy Life Expectancy","5045","Computing - Purchase of Hardware","12/07/2018"
"Wolverhampton City Council","http://opendatacommunities.org/id/metropolitan-district-council/wolverhampton","34SP.com Ltd","40.00","Early Years & Universal Service","4816","Computing - Purchase of Software","12/07/2018"
"Wolverhampton City Council","http://opendatacommunities.org/id/metropolitan-district-council/wolverhampton","Amazon UK Marketplace","12.99","Strategic ICTS (ICT Serv Budget)","5942","Books","12/07/2018"
"Wolverhampton City Council","http://opendatacommunities.org/id/metropolitan-district-council/wolverhampton","AMAZON SVCS EU-UK AMAZ","12.49","Upper Pendeford Farm Childrens Home","5942","Books","12/07/2018"
"Wolverhampton City Council","http://opendatacommunities.org/id/metropolitan-district-council/wolverhampton","AMAZON SVCS EU-UK AMAZ","8.32","Upper Pendeford Farm Childrens Home","5942","Books","12/07/2018"
"Wolverhampton City Council","http://opendatacommunities.org/id/metropolitan-district-council/wolverhampton","AMAZON SVCS EU-UK AMAZ","7.95","Upper Pendeford Farm Childrens Home","5942","Books","12/07/2018"
"Wolverhampton City Council","http://opendatacommunities.org/id/metropolitan-district-council/wolverhampton","Audible.co.uk","7.99","Upper Pendeford Farm Childrens Home","5968","Subscriptions","12/07/2018"
"Wolverhampton City Council","http://opendatacommunities.org/id/metropolitan-district-council/wolverhampton","SCREWFIX DIRECT","157.23","Service Wide","5211","Materials","12/07/2018"
"Wolverhampton City Council","http://opendatacommunities.org/id/metropolitan-district-council/wolverhampton","Amazon UK Marketplace","13.91","ICT Services","5942","Equipment - Purchase","12/07/2018"
"Wolverhampton City Council","http://opendatacommunities.org/id/metropolitan-district-council/wolverhampton","AO RETAIL LIMITED","200.00","LAC Transitions Team","5722","Client Allowances","12/07/2018"
"Wolverhampton City Council","http://opendatacommunities.org/id/metropolitan-district-council/wolverhampton","Amazon UK Marketplace","79.99","LAC Transitions Team","5942","Client Allowances","12/07/2018"
"Wolverhampton City Council","http://opendatacommunities.org/id/metropolitan-district-council/wolverhampton","PAYPAL  123REGLIMIT","19.98","Technical Support","4816","Computing - Purchase of Software","12/07/2018"
"Wolverhampton City Council","http://opendatacommunities.org/id/metropolitan-district-council/wolverhampton","TRAVELODGE","49.37","Members Expenses","3615","Subsistence","12/07/2018"
"Wolverhampton City Council","http://opendatacommunities.org/id/metropolitan-district-council/wolverhampton","Virgin Trains","87.40","Members Expenses","4112","Public Transport","12/07/2018"
"Wolverhampton City Council","http://opendatacommunities.org/id/metropolitan-district-council/wolverhampton","CITY OF WOLVERHAMPTON","30.00","Head of Service - CINCP","9399","Services - Professional Fees","12/07/2018"
"Wolverhampton City Council","http://opendatacommunities.org/id/metropolitan-district-council/wolverhampton","CITY OF WOLVERHAMPTON","27.00","Head of Service - CINCP","9399","Services - Professional Fees","12/07/2018"
"Wolverhampton City Council","http://opendatacommunities.org/id/metropolitan-district-council/wolverhampton","OXYGEN FREEJUMPING","25.00","EIP Locality 5","7997","Educ Trips, Holidays, Outings, Activity","12/07/2018"
"Wolverhampton City Council","http://opendatacommunities.org/id/metropolitan-district-council/wolverhampton","WILDSIDE ACTIVITY CENT","40.00","EIP Locality 5","7999","Educ Trips, Holidays, Outings, Activity","12/07/2018"
"Wolverhampton City Council","http://opendatacommunities.org/id/metropolitan-district-council/wolverhampton","BOUNCEPAD","170.00","Maintenance of Exhibits","5943","Equipment - Purchase","12/07/2018"
"Wolverhampton City Council","http://opendatacommunities.org/id/metropolitan-district-council/wolverhampton","Amazon UK Marketplace","20.48","Adult Services - West","5942","Equipment - Purchase","12/07/2018"
"Wolverhampton City Council","http://opendatacommunities.org/id/metropolitan-district-council/wolverhampton","ARGOS LTD","24.99","LAC Transitions Team","5310","Independant Living Allowance","12/07/2018"
"Wolverhampton City Council","http://opendatacommunities.org/id/metropolitan-district-council/wolverhampton","PARCELFORCE","14.75","Education And Access","4215","Comms - Postage","12/07/2018"
"Wolverhampton City Council","http://opendatacommunities.org/id/metropolitan-district-council/wolverhampton","B&M RETAIL","161.04","LAC Transitions Team","5310","Client Allowances","12/07/2018"
"Wolverhampton City Council","http://opendatacommunities.org/id/metropolitan-district-council/wolverhampton","B&M RETAIL","221.41","LAC Transitions Team","5310","Client Allowances","12/07/2018"
"Wolverhampton City Council","http://opendatacommunities.org/id/metropolitan-district-council/wolverhampton","ARGOS WOLVERHAMPTO","191.66","LAC Transitions Team","5310","Client Allowances","12/07/2018"
"Wolverhampton City Council","http://opendatacommunities.org/id/metropolitan-district-council/wolverhampton","SAINSBURYS (2340)","31.67","LAC Transitions Team","5411","Client Allowances","12/07/2018"
"Wolverhampton City Council","http://opendatacommunities.org/id/metropolitan-district-council/wolverhampton","MARKS&SPENCER PLC SACA","5.45","Admin & Support","5411","Provisions (Not for resale)","11/07/2018"
"Wolverhampton City Council","http://opendatacommunities.org/id/metropolitan-district-council/wolverhampton","123-REG.CO.UK","212.48","Housing Public Health","4816","Computing - Purchase of Software","11/07/2018"
"Wolverhampton City Council","http://opendatacommunities.org/id/metropolitan-district-council/wolverhampton","B & Q 1193","52.50","LAC Transitions Team","5211","Client Allowances","11/07/2018"
"Wolverhampton City Council","http://opendatacommunities.org/id/metropolitan-district-council/wolverhampton","PC WORLD ONLINE","79.00","Strategic ICTS (ICT Serv Budget)","5732","Equipment - Purchase","11/07/2018"
"Wolverhampton City Council","http://opendatacommunities.org/id/metropolitan-district-council/wolverhampton","WWW.ARGOS.CO.UK","21.94","Intensive Family Support Team","5310","Equipment - Purchase","11/07/2018"
"Wolverhampton City Council","http://opendatacommunities.org/id/metropolitan-district-council/wolverhampton","AMAZON SVCS EU-UK AMAZ","2.25","Upper Pendeford Farm Childrens Home","5942","Books","11/07/2018"
"Wolverhampton City Council","http://opendatacommunities.org/id/metropolitan-district-council/wolverhampton","AMAZON SVCS EU-UK AMAZ","6.74","Upper Pendeford Farm Childrens Home","5942","Books","11/07/2018"
"Wolverhampton City Council","http://opendatacommunities.org/id/metropolitan-district-council/wolverhampton","HMCOURTS-SERVICE.G","75.00","Mental Health Assessment & Care Mgmt","9222","Services - Fees and Charges","11/07/2018"
"Wolverhampton City Council","http://opendatacommunities.org/id/metropolitan-district-council/wolverhampton","ASDA SUPERSTORE","45.42","EIP Locality 5","5411","Training Expenses","11/07/2018"
"Wolverhampton City Council","http://opendatacommunities.org/id/metropolitan-district-council/wolverhampton","WILKO RETAIL LIMIT","5.00","Connexions Contract","5722","Stationery","11/07/2018"
"Wolverhampton City Council","http://opendatacommunities.org/id/metropolitan-district-council/wolverhampton","POUNDLAND","6.00","CIN/CP Social Work Unit - Area 2","5310","Catering","11/07/2018"
"Wolverhampton City Council","http://opendatacommunities.org/id/metropolitan-district-council/wolverhampton","HOME BARGAINS","4.76","CIN/CP Social Work Unit - Area 2","5251","Equipment - Purchase","11/07/2018"
"Wolverhampton City Council","http://opendatacommunities.org/id/metropolitan-district-council/wolverhampton","CARVER/WOLVERHAMPTON/L","14.82","Culwell Street Depot","5211","R&M - Departmental planned (external)","11/07/2018"
"Wolverhampton City Council","http://opendatacommunities.org/id/metropolitan-district-council/wolverhampton","ARGOS RETAIL GROUP","199.98","Older People Provider Management","5310","Equipment - Purchase","11/07/2018"
"Wolverhampton City Council","http://opendatacommunities.org/id/metropolitan-district-council/wolverhampton","CardtronicsUK","91.67","EIP Locality 3","6011","Grant Payments","11/07/2018"
"Wolverhampton City Council","http://opendatacommunities.org/id/metropolitan-district-council/wolverhampton","MAYFAIR CARPETS","216.67","LAC Transitions Team","5713","Client Allowances","11/07/2018"
"Wolverhampton City Council","http://opendatacommunities.org/id/metropolitan-district-council/wolverhampton","MAYFAIR CARPETS","191.67","LAC Transitions Team","5713","Client Allowances","11/07/2018"
"Wolverhampton City Council","http://opendatacommunities.org/id/metropolitan-district-council/wolverhampton","VIRGIN MEDIS PYMTS","7.50","Community Enablement","4814","Comms - Telephone Call charges","11/07/2018"
"Wolverhampton City Council","http://opendatacommunities.org/id/metropolitan-district-council/wolverhampton","Amazon UK Marketplace","21.15","Ernest Bold Court","5942","Cleaning Supplies and Materials","11/07/2018"
"Wolverhampton City Council","http://opendatacommunities.org/id/metropolitan-district-council/wolverhampton","Trainline","60.50","CIN/CP Social Work Unit - Area 4","4112","Section 17","11/07/2018"
"Wolverhampton City Council","http://opendatacommunities.org/id/metropolitan-district-council/wolverhampton","TESCO STORES 5503","75.00","Ernest Bold Court","5411","Equipment - Purchase","11/07/2018"
"Wolverhampton City Council","http://opendatacommunities.org/id/metropolitan-district-council/wolverhampton","Trainline","18.15","CIN/CP Social Work Unit - Area 8","4112","Section 17","11/07/2018"
"Wolverhampton City Council","http://opendatacommunities.org/id/metropolitan-district-council/wolverhampton","DECATHLON UK","44.34","Towers Outdoor Education Centre","5941","Equipment - Purchase","11/07/2018"
"Wolverhampton City Council","http://opendatacommunities.org/id/metropolitan-district-council/wolverhampton","WWW.ICO.GOV.UK","40.00","Members Expenses","9399","Subscriptions","11/07/2018"
"Wolverhampton City Council","http://opendatacommunities.org/id/metropolitan-district-council/wolverhampton","WWW.ICO.GOV.UK","40.00","Members Expenses","9399","Subscriptions","11/07/2018"
"Wolverhampton City Council","http://opendatacommunities.org/id/metropolitan-district-council/wolverhampton","WWW.ICO.GOV.UK","40.00","Members Expenses","9399","Subscriptions","11/07/2018"
"Wolverhampton City Council","http://opendatacommunities.org/id/metropolitan-district-council/wolverhampton","WWW.ICO.GOV.UK","40.00","Members Expenses","9399","Subscriptions","11/07/2018"
"Wolverhampton City Council","http://opendatacommunities.org/id/metropolitan-district-council/wolverhampton","WWW.ICO.GOV.UK","40.00","Members Expenses","9399","Subscriptions","11/07/2018"
"Wolverhampton City Council","http://opendatacommunities.org/id/metropolitan-district-council/wolverhampton","WWW.ICO.GOV.UK","40.00","Members Expenses","9399","Subscriptions","11/07/2018"
"Wolverhampton City Council","http://opendatacommunities.org/id/metropolitan-district-council/wolverhampton","WWW.ICO.GOV.UK","40.00","Members Expenses","9399","Subscriptions","11/07/2018"
"Wolverhampton City Council","http://opendatacommunities.org/id/metropolitan-district-council/wolverhampton","Amazon EU","8.92","Adoption and Residence Team & Allowances","5969","Stationery","11/07/2018"
"Wolverhampton City Council","http://opendatacommunities.org/id/metropolitan-district-council/wolverhampton","TESCO STORES 5194","154.55","Towers Outdoor Education Centre","5411","Provisions (Not for resale)","11/07/2018"
"Wolverhampton City Council","http://opendatacommunities.org/id/metropolitan-district-council/wolverhampton","BLOXWICH  SST","7.20","Economic Development","4112","Public Transport","11/07/2018"
"Wolverhampton City Council","http://opendatacommunities.org/id/metropolitan-district-council/wolverhampton","Amazon UK Marketplace","1.27","WV Active Marketing","5942","Books","11/07/2018"
"Wolverhampton City Council","http://opendatacommunities.org/id/metropolitan-district-council/wolverhampton","Trainline","111.50","Headstart - Young People Engagement","4112","Public Transport","11/07/2018"
"Wolverhampton City Council","http://opendatacommunities.org/id/metropolitan-district-council/wolverhampton","SPECSAVERSEVOUGB-","850.00","HR Advice","8043","Services - Professional Fees","11/07/2018"
"Wolverhampton City Council","http://opendatacommunities.org/id/metropolitan-district-council/wolverhampton","SPECSAVERSEVOUGB-","923.62","HR Advice","8043","Services - Professional Fees","11/07/2018"
"Wolverhampton City Council","http://opendatacommunities.org/id/metropolitan-district-council/wolverhampton","WWW.ICO.GOV.UK","40.00","Members Expenses","9399","Subscriptions","11/07/2018"
"Wolverhampton City Council","http://opendatacommunities.org/id/metropolitan-district-council/wolverhampton","WWW.ICO.GOV.UK","40.00","Members Expenses","9399","Subscriptions","11/07/2018"
"Wolverhampton City Council","http://opendatacommunities.org/id/metropolitan-district-council/wolverhampton","WWW.ICO.GOV.UK","40.00","Members Expenses","9399","Subscriptions","11/07/2018"
"Wolverhampton City Council","http://opendatacommunities.org/id/metropolitan-district-council/wolverhampton","WWW.ICO.GOV.UK","40.00","Members Expenses","9399","Subscriptions","11/07/2018"
"Wolverhampton City Council","http://opendatacommunities.org/id/metropolitan-district-council/wolverhampton","WWW.ICO.GOV.UK","40.00","Members Expenses","9399","Subscriptions","11/07/2018"
"Wolverhampton City Council","http://opendatacommunities.org/id/metropolitan-district-council/wolverhampton","Virgin Trains","120.10","Members Expenses","4112","Public Transport","11/07/2018"
"Wolverhampton City Council","http://opendatacommunities.org/id/metropolitan-district-council/wolverhampton","SETON","68.97","Northicote Farm","5099","Materials","11/07/2018"
"Wolverhampton City Council","http://opendatacommunities.org/id/metropolitan-district-council/wolverhampton","BILASH","521.12","Mayoral Expenses","5085","Hospitality","11/07/2018"
"Wolverhampton City Council","http://opendatacommunities.org/id/metropolitan-district-council/wolverhampton","WWW.ONLINEREALITY.CO.U","45.74","EIP Locality 8","5712","Furniture","11/07/2018"
"Wolverhampton City Council","http://opendatacommunities.org/id/metropolitan-district-council/wolverhampton","EE & T-MOBILE","-8.24","Civic Halls Non Direct Management A/C","4814","Comms - Telephone Call charges","11/07/2018"
"Wolverhampton City Council","http://opendatacommunities.org/id/metropolitan-district-council/wolverhampton","VIRGIN MEDIS PYMTS","225.00","Civic Halls Non Direct Management A/C","4814","Comms - Telephone Call charges","11/07/2018"
"Wolverhampton City Council","http://opendatacommunities.org/id/metropolitan-district-council/wolverhampton","VIRGIN MEDIS PYMTS","92.00","Civic Halls Non Direct Management A/C","4814","Comms - Telephone Call charges","11/07/2018"
"Wolverhampton City Council","http://opendatacommunities.org/id/metropolitan-district-council/wolverhampton","B&M RETAIL LTD","123.53","LAC Transitions Team","5310","Client Allowances","11/07/2018"
"Wolverhampton City Council","http://opendatacommunities.org/id/metropolitan-district-council/wolverhampton","WWW.ARGOS.CO.UK","37.86","CIN/CP Social Work Unit - Area 8","5310","Section 17","10/07/2018"
"Wolverhampton City Council","http://opendatacommunities.org/id/metropolitan-district-council/wolverhampton","REGISTRARS OFFICE","60.00","Adoption and Residence Team & Allowances","8299","Services - Fees and Charges","10/07/2018"
"Wolverhampton City Council","http://opendatacommunities.org/id/metropolitan-district-council/wolverhampton","WOLVERHAMPTON T/O","95.00","Assessment Team (East)","4112","Public Transport","10/07/2018"
"Wolverhampton City Council","http://opendatacommunities.org/id/metropolitan-district-council/wolverhampton","Trainline","67.50","Corporate Procurement Unit","4112","Public Transport","10/07/2018"
"Wolverhampton City Council","http://opendatacommunities.org/id/metropolitan-district-council/wolverhampton","HAYMARKET MEDIA GROUP","930.00","Corporate Procurement Unit","7392","Services - Consultants","10/07/2018"
"Wolverhampton City Council","http://opendatacommunities.org/id/metropolitan-district-council/wolverhampton","WWW.ICO.GOV.UK","2,900.00","Information Governance Team","9399","Subscriptions","10/07/2018"
"Wolverhampton City Council","http://opendatacommunities.org/id/metropolitan-district-council/wolverhampton","WWW.AMBERHAWK.COM","290.00","Central Training","7399","Training Expenses","10/07/2018"
"Wolverhampton City Council","http://opendatacommunities.org/id/metropolitan-district-council/wolverhampton","GO CARZ","15.00","MASH","4121","Client Transport","10/07/2018"
"Wolverhampton City Council","http://opendatacommunities.org/id/metropolitan-district-council/wolverhampton","WWW.ARGOS.CO.UK","132.47","CIN/CP Social Work Unit - Area 8","5310","Section 17","10/07/2018"
"Wolverhampton City Council","http://opendatacommunities.org/id/metropolitan-district-council/wolverhampton","GO CARZ","16.20","MASH","4121","Client Transport","10/07/2018"
"Wolverhampton City Council","http://opendatacommunities.org/id/metropolitan-district-council/wolverhampton","WWW.ARGOS.CO.UK","45.32","CIN/CP Social Work Unit - Area 8","5310","Section 17","10/07/2018"
"Wolverhampton City Council","http://opendatacommunities.org/id/metropolitan-district-council/wolverhampton","GO CARZ","16.20","MASH","4121","Client Transport","10/07/2018"
"Wolverhampton City Council","http://opendatacommunities.org/id/metropolitan-district-council/wolverhampton","GO CARZ","16.20","MASH","4121","Client Transport","10/07/2018"
"Wolverhampton City Council","http://opendatacommunities.org/id/metropolitan-district-council/wolverhampton","GO CARZ","12.80","MASH","4121","Client Transport","10/07/2018"
"Wolverhampton City Council","http://opendatacommunities.org/id/metropolitan-district-council/wolverhampton","WWW.RILEYS.CO.UK","40.29","CIN/CP Social Work Unit - Area 1","7997","Educ Trips, Holidays, Outings, Activity","10/07/2018"
"Wolverhampton City Council","http://opendatacommunities.org/id/metropolitan-district-council/wolverhampton","Spotify P06A47D405","9.99","CIN/CP Social Work Unit - Area 1","5815","Computing - Purchase of Software","10/07/2018"
"Wolverhampton City Council","http://opendatacommunities.org/id/metropolitan-district-council/wolverhampton","WWW.ARGOS.CO.UK","-45.43","CIN/CP Social Work Unit - Area 8","5310","Section 17","10/07/2018"
"Wolverhampton City Council","http://opendatacommunities.org/id/metropolitan-district-council/wolverhampton","THE POST OFFICE","6.50","Singh Twins","9402","Comms - Postage","10/07/2018"
"Wolverhampton City Council","http://opendatacommunities.org/id/metropolitan-district-council/wolverhampton","SAINSBURYS SACAT (2340","16.00","Civic Centre Catering","5411","Provisions (Not for resale)","10/07/2018"
"Wolverhampton City Council","http://opendatacommunities.org/id/metropolitan-district-council/wolverhampton","LOYD WEDNESFIELD WOLVE","200.00","Duke Street Bungalows","6011","Provisions (Not for resale)","10/07/2018"
"Wolverhampton City Council","http://opendatacommunities.org/id/metropolitan-district-council/wolverhampton","CUMMINGS BROTHERS LOCK","2.50","Blakenhall Commty & Healthy Living Ctr","7399","Equipment - Purchase","10/07/2018"
"Wolverhampton City Council","http://opendatacommunities.org/id/metropolitan-district-council/wolverhampton","WWW.POSTURITE.CO.UK","77.94","CIN/CP Social Work Unit - Area 1","5021","Equipment - Purchase","10/07/2018"
"Wolverhampton City Council","http://opendatacommunities.org/id/metropolitan-district-council/wolverhampton","BEATSABAR MUSIC PROJEC","200.77","Youth Offending Team","5733","Equipment - Purchase","10/07/2018"
"Wolverhampton City Council","http://opendatacommunities.org/id/metropolitan-district-council/wolverhampton","BEATSABAR MUSIC PROJEC","100.00","Youth Offending Team","5733","Equipment - Purchase","10/07/2018"
"Wolverhampton City Council","http://opendatacommunities.org/id/metropolitan-district-council/wolverhampton","PAYPAL  GOODDEEDSMU","1,200.00","Bantock House Museum - Exhibitions","5735","Services - Professional Fees","10/07/2018"
"Wolverhampton City Council","http://opendatacommunities.org/id/metropolitan-district-council/wolverhampton","NATIONWIDE","250.00","EIP Locality 2","6011","Grant Payments","10/07/2018"
"Wolverhampton City Council","http://opendatacommunities.org/id/metropolitan-district-council/wolverhampton","BURLINGTON MAG PUBLNS","978.00","Arts Publicity","5399","Marketing \ Non-staff advertising","10/07/2018"
"Wolverhampton City Council","http://opendatacommunities.org/id/metropolitan-district-council/wolverhampton","NATIONWIDE","250.00","EIP Locality 2","6011","Grant Payments","10/07/2018"
"Wolverhampton City Council","http://opendatacommunities.org/id/metropolitan-district-council/wolverhampton","LOVE2SHOP.CO.UK","491.45","IMPACT","8641","Educ Trips, Holidays, Outings, Activity","10/07/2018"
"Wolverhampton City Council","http://opendatacommunities.org/id/metropolitan-district-council/wolverhampton","WOLVERHAMPTON T/O","17.40","IMPACT","4112","Public Transport","10/07/2018"
"Wolverhampton City Council","http://opendatacommunities.org/id/metropolitan-district-council/wolverhampton","SJASUPLIES","82.33","Adoption and Residence Team & Allowances","8398","First Aid Requisites","10/07/2018"
"Wolverhampton City Council","http://opendatacommunities.org/id/metropolitan-district-council/wolverhampton","CITY OF WOLVERHAMPTON","30.00","IMPACT","9399","Services - Fees and Charges","10/07/2018"
"Wolverhampton City Council","http://opendatacommunities.org/id/metropolitan-district-council/wolverhampton","000002200500000","250.00","CIN/CP Social Work Unit - Area 6","6011","Financial Assistance In Exceptional Circ","10/07/2018"
"Wolverhampton City Council","http://opendatacommunities.org/id/metropolitan-district-council/wolverhampton","Trainline","16.85","Youth Offending Team","4112","Public Transport","10/07/2018"
"Wolverhampton City Council","http://opendatacommunities.org/id/metropolitan-district-council/wolverhampton","WWW.C-S.UK.COM","139.87","WV Active Marketing","2741","Publications","10/07/2018"
"Wolverhampton City Council","http://opendatacommunities.org/id/metropolitan-district-council/wolverhampton","Amazon UK Marketplace","2.22","WV Active Marketing","5942","Books","10/07/2018"
"Wolverhampton City Council","http://opendatacommunities.org/id/metropolitan-district-council/wolverhampton","LOYD 37 CHURCH STREET","200.00","Duke Street Bungalows","6011","Provisions (Not for resale)","10/07/2018"
"Wolverhampton City Council","http://opendatacommunities.org/id/metropolitan-district-council/wolverhampton","LOYD WEDNESFIELD WOLVE","200.00","Duke Street Bungalows","6011","Financial Assistance In Exceptional Circ","10/07/2018"
"Wolverhampton City Council","http://opendatacommunities.org/id/metropolitan-district-council/wolverhampton","TVLICENSING.CO.UK","125.42","LAC Transitions Team","7392","Client Allowances","10/07/2018"
"Wolverhampton City Council","http://opendatacommunities.org/id/metropolitan-district-council/wolverhampton","ASDA GROCERIES ONLINE","5.00","Upper Pendeford Farm Childrens Home","5411","Provisions (Not for resale)","10/07/2018"
"Wolverhampton City Council","http://opendatacommunities.org/id/metropolitan-district-council/wolverhampton","WM MORRISON 024","97.31","Ernest Bold Court","5411","Provisions (Not for resale)","10/07/2018"
"Wolverhampton City Council","http://opendatacommunities.org/id/metropolitan-district-council/wolverhampton","CURRYS ONLINE","179.99","EIP Locality 5","5732","Grant Payments","10/07/2018"
"Wolverhampton City Council","http://opendatacommunities.org/id/metropolitan-district-council/wolverhampton","AMAZON SVCS EU-UK AMAZ","12.03","CIN/CP Social Work Unit - Area 1","5942","Equipment - Purchase","09/07/2018"
"Wolverhampton City Council","http://opendatacommunities.org/id/metropolitan-district-council/wolverhampton","Amazon EU","16.02","CIN/CP Social Work Unit - Area 1","5969","Equipment - Purchase","09/07/2018"
"Wolverhampton City Council","http://opendatacommunities.org/id/metropolitan-district-council/wolverhampton","ARGOS LTD","-59.99","Parent/Partnership Service","5310","Equipment - Purchase","09/07/2018"
"Wolverhampton City Council","http://opendatacommunities.org/id/metropolitan-district-council/wolverhampton","ASDA SUPERSTORE","17.94","CIN/CP Social Work Unit - Area 5","5411","No Recourse to Public Funds","09/07/2018"
"Wolverhampton City Council","http://opendatacommunities.org/id/metropolitan-district-council/wolverhampton","THE RANGE","39.96","LAC Transitions Team","5311","Independant Living Allowance","09/07/2018"
"Wolverhampton City Council","http://opendatacommunities.org/id/metropolitan-district-council/wolverhampton","ASDA SUPERSTORE","6.87","Contemporary Gallery","5411","Provisions (Not for resale)","09/07/2018"
"Wolverhampton City Council","http://opendatacommunities.org/id/metropolitan-district-council/wolverhampton","000002200500000","200.00","Childrens with Disabilities Team","6011","Financial Assistance In Exceptional Circ","09/07/2018"
"Wolverhampton City Council","http://opendatacommunities.org/id/metropolitan-district-council/wolverhampton","EE & T-MOBILE","70.35","Civic Halls Non Direct Management A/C","4814","Comms - Telephone Call charges","09/07/2018"
"Wolverhampton City Council","http://opendatacommunities.org/id/metropolitan-district-council/wolverhampton","EE & T-MOBILE","618.68","Civic Halls Non Direct Management A/C","4814","Comms - Telephone Call charges","09/07/2018"
"Wolverhampton City Council","http://opendatacommunities.org/id/metropolitan-district-council/wolverhampton","BT PAY BY PHONE","878.83","Bilston Museum","4814","Comms - Telephone Call charges","09/07/2018"
"Wolverhampton City Council","http://opendatacommunities.org/id/metropolitan-district-council/wolverhampton","BT PAY BY PHONE","361.90","Makers Dozen","4814","Comms - Telephone Call charges","09/07/2018"
"Wolverhampton City Council","http://opendatacommunities.org/id/metropolitan-district-council/wolverhampton","Amazon EU","22.82","Towers Outdoor Education Centre","5969","Fixtures and Fittings - Purchases","09/07/2018"
"Wolverhampton City Council","http://opendatacommunities.org/id/metropolitan-district-council/wolverhampton","POUNDLAND LTD 1020","9.34","Admin & Support","5310","Equipment - Purchase","09/07/2018"
"Wolverhampton City Council","http://opendatacommunities.org/id/metropolitan-district-council/wolverhampton","FACEBK RKGC4FEC22","199.20","Admin & Support","7311","Marketing \ Non-staff advertising","09/07/2018"
"Wolverhampton City Council","http://opendatacommunities.org/id/metropolitan-district-council/wolverhampton","MARKS&SPENCER PLC SACA","36.40","Admin & Support","5411","Provisions (Not for resale)","09/07/2018"
"Wolverhampton City Council","http://opendatacommunities.org/id/metropolitan-district-council/wolverhampton","POUNDLAND LTD 1463","3.33","City Direct","5310","Equipment - Purchase","09/07/2018"
"Wolverhampton City Council","http://opendatacommunities.org/id/metropolitan-district-council/wolverhampton","NAMESCO","34.99","City Direct","4816","Computing - Purchase of Software","09/07/2018"
"Wolverhampton City Council","http://opendatacommunities.org/id/metropolitan-district-council/wolverhampton","SCREWFIX DIRECT LT","37.48","Cemeteries","5211","Materials","09/07/2018"
"Wolverhampton City Council","http://opendatacommunities.org/id/metropolitan-district-council/wolverhampton","Amazon UK Marketplace","64.12","EIP Locality 6","5942","Equipment - Purchase","09/07/2018"
"Wolverhampton City Council","http://opendatacommunities.org/id/metropolitan-district-council/wolverhampton","PAYPAL  CHERISHEDWE","1.50","Communications & Marketing - General","8999","Services - Professional Fees","09/07/2018"
"Wolverhampton City Council","http://opendatacommunities.org/id/metropolitan-district-council/wolverhampton","Cross Country Trains","216.10","Digital Transformation Programme","4112","Public Transport","09/07/2018"
"Wolverhampton City Council","http://opendatacommunities.org/id/metropolitan-district-council/wolverhampton","WOLVERHAMPTON CC","12.50","IMPACT","7523","Car Allowances","09/07/2018"
"Wolverhampton City Council","http://opendatacommunities.org/id/metropolitan-district-council/wolverhampton","SCREWFIX DIRECT LT","9.99","Caretakers Community Centre","5211","Materials","09/07/2018"
"Wolverhampton City Council","http://opendatacommunities.org/id/metropolitan-district-council/wolverhampton","CROWNE PLAZA BIRMINGHA","89.80","Delivery & OCE Development","7011","Subsistence","09/07/2018"
"Wolverhampton City Council","http://opendatacommunities.org/id/metropolitan-district-council/wolverhampton","Virgin Trains","-10.00","Intensive Family Support Team","4112","Public Transport","09/07/2018"
"Wolverhampton City Council","http://opendatacommunities.org/id/metropolitan-district-council/wolverhampton","Amazon Prime","6.66","Upper Pendeford Farm Childrens Home","5968","Subscriptions","09/07/2018"
"Wolverhampton City Council","http://opendatacommunities.org/id/metropolitan-district-council/wolverhampton","ASDA GROCERIES ONLINE","154.61","Upper Pendeford Farm Childrens Home","5411","Provisions (Not for resale)","09/07/2018"
"Wolverhampton City Council","http://opendatacommunities.org/id/metropolitan-district-council/wolverhampton","DFS Trading Limited","50.00","Upper Pendeford Farm Childrens Home","5712","Equipment - Purchase","09/07/2018"
"Wolverhampton City Council","http://opendatacommunities.org/id/metropolitan-district-council/wolverhampton","Amazon UK Marketplace","49.92","Upper Pendeford Farm Childrens Home","5942","Books","09/07/2018"
"Wolverhampton City Council","http://opendatacommunities.org/id/metropolitan-district-council/wolverhampton","WWW.OFFICEFURNITUREONL","200.00","Emergency Duty Team","5712","Equipment - Purchase","09/07/2018"
"Wolverhampton City Council","http://opendatacommunities.org/id/metropolitan-district-council/wolverhampton","JOHNSONS","18.00","Service Wide","7210","Cleaning Supplies and Materials","09/07/2018"
"Wolverhampton City Council","http://opendatacommunities.org/id/metropolitan-district-council/wolverhampton","Amazon UK Marketplace","15.48","ICT Services","5942","Computing - Purchase of Hardware","09/07/2018"
"Wolverhampton City Council","http://opendatacommunities.org/id/metropolitan-district-council/wolverhampton","ARGOS LTD","14.99","LAC Transitions Team","5310","Client Allowances","09/07/2018"
"Wolverhampton City Council","http://opendatacommunities.org/id/metropolitan-district-council/wolverhampton","ARGOS LTD","16.49","LAC Transitions Team","5310","Client Allowances","09/07/2018"
"Wolverhampton City Council","http://opendatacommunities.org/id/metropolitan-district-council/wolverhampton","SALFORD PROFESSIONAL D","240.00","Public Health - Healthier Places Team","8299","Training Expenses","09/07/2018"
"Wolverhampton City Council","http://opendatacommunities.org/id/metropolitan-district-council/wolverhampton","ASDA GROCERIES ONLINE","-.89","Ernest Bold Court","5411","Provisions (Not for resale)","09/07/2018"
"Wolverhampton City Council","http://opendatacommunities.org/id/metropolitan-district-council/wolverhampton","ASDA GROCERIES ONLINE","73.40","Ernest Bold Court","5411","Provisions (Not for resale)","09/07/2018"
"Wolverhampton City Council","http://opendatacommunities.org/id/metropolitan-district-council/wolverhampton","HALFORDS 0775","63.96","Wolverhampton Indoor and Open Market","5940","Equipment - Purchase","09/07/2018"
"Wolverhampton City Council","http://opendatacommunities.org/id/metropolitan-district-council/wolverhampton","HALFORDS 0448","95.94","Wolverhampton Indoor and Open Market","5940","Equipment - Purchase","09/07/2018"
"Wolverhampton City Council","http://opendatacommunities.org/id/metropolitan-district-council/wolverhampton","BE EVENT HIRE","1,382.40","Wolverhampton Indoor and Open Market","7394","Equipment - Purchase","09/07/2018"
"Wolverhampton City Council","http://opendatacommunities.org/id/metropolitan-district-council/wolverhampton","B&M RETAIL","89.95","Bradley Resource Centre","5310","Equipment - Purchase","09/07/2018"
"Wolverhampton City Council","http://opendatacommunities.org/id/metropolitan-district-council/wolverhampton","SAINSBURYS 2040","9.80","Duke Street Bungalows","5411","R4010","09/07/2018"
"Wolverhampton City Council","http://opendatacommunities.org/id/metropolitan-district-council/wolverhampton","Wix.com","93.13","Technical Support","5817","Computing - Purchase of Software","09/07/2018"
"Wolverhampton City Council","http://opendatacommunities.org/id/metropolitan-district-council/wolverhampton","Wix.com","93.13","Technical Support","5817","Computing - Purchase of Software","09/07/2018"
"Wolverhampton City Council","http://opendatacommunities.org/id/metropolitan-district-council/wolverhampton","PREMIER INN","101.00","Singh Twins","3811","Accommodation Costs","09/07/2018"
"Wolverhampton City Council","http://opendatacommunities.org/id/metropolitan-district-council/wolverhampton","Virgin Trains","74.60","Singh Twins","4112","Public Transport","09/07/2018"
"Wolverhampton City Council","http://opendatacommunities.org/id/metropolitan-district-council/wolverhampton","Virgin Trains","17.80","Equalities","4112","Public Transport","09/07/2018"
"Wolverhampton City Council","http://opendatacommunities.org/id/metropolitan-district-council/wolverhampton","ATZ&H INN","416.67","CIN/CP Social Work Unit - Area 6","7011","Section 17","09/07/2018"
"Wolverhampton City Council","http://opendatacommunities.org/id/metropolitan-district-council/wolverhampton","ATZ&H INN","50.00","CIN/CP Social Work Unit - Area 6","7011","Section 17","09/07/2018"
"Wolverhampton City Council","http://opendatacommunities.org/id/metropolitan-district-council/wolverhampton","GRO HM PASSPORT OFFICE","23.40","Head of Service - CINCP","9399","Services - Professional Fees","09/07/2018"
"Wolverhampton City Council","http://opendatacommunities.org/id/metropolitan-district-council/wolverhampton","CITY OF WOLVERHAMPTON","60.00","Head of Service - CINCP","9399","Services - Professional Fees","09/07/2018"
"Wolverhampton City Council","http://opendatacommunities.org/id/metropolitan-district-council/wolverhampton","REDWINGS LODGE","192.82","CIN/CP Social Work Unit - Area 1","7011","Section 17","09/07/2018"
"Wolverhampton City Council","http://opendatacommunities.org/id/metropolitan-district-council/wolverhampton","AMAZON SVCS EU-UK AMAZ","-50.97","Parks - Ranger Service","5942","Stationery","09/07/2018"
"Wolverhampton City Council","http://opendatacommunities.org/id/metropolitan-district-council/wolverhampton","Amazon UK Marketplace","17.47","Parks - Ranger Service","5942","Equipment - Purchase","09/07/2018"
"Wolverhampton City Council","http://opendatacommunities.org/id/metropolitan-district-council/wolverhampton","Amazon UK Marketplace","54.37","Towers Outdoor Education Centre","5942","Equipment - Purchase","09/07/2018"
"Wolverhampton City Council","http://opendatacommunities.org/id/metropolitan-district-council/wolverhampton","Amazon UK Marketplace","3.14","Towers Outdoor Education Centre","5942","Equipment - Purchase","09/07/2018"
"Wolverhampton City Council","http://opendatacommunities.org/id/metropolitan-district-council/wolverhampton","CUMMINGS BROTHERS LOCK","5.83","Northicote Farm","7399","Equipment - Purchase","09/07/2018"
"Wolverhampton City Council","http://opendatacommunities.org/id/metropolitan-district-council/wolverhampton","Amazon UK Marketplace","12.90","Technician","5942","Equipment - Purchase","09/07/2018"
"Wolverhampton City Council","http://opendatacommunities.org/id/metropolitan-district-council/wolverhampton","DULUX DECORATOR CENTRE","445.91","","5198","Materials","09/07/2018"
"Wolverhampton City Council","http://opendatacommunities.org/id/metropolitan-district-council/wolverhampton","ARGOS RETAIL GROUP","59.99","Parent/Partnership Service","5310","Equipment - Purchase","06/07/2018"
"Wolverhampton City Council","http://opendatacommunities.org/id/metropolitan-district-council/wolverhampton","Trainline","183.50","Director of Governance","4112","Public Transport","06/07/2018"
"Wolverhampton City Council","http://opendatacommunities.org/id/metropolitan-district-council/wolverhampton","DULUX DECORATOR CENTRE","34.97","Melanie Tomlinson","5198","Materials","06/07/2018"
"Wolverhampton City Council","http://opendatacommunities.org/id/metropolitan-district-council/wolverhampton","PREMIER INN","125.00","Adoption and Residence Team & Allowances","3811","Services - Supplies & Services to users","06/07/2018"
"Wolverhampton City Council","http://opendatacommunities.org/id/metropolitan-district-council/wolverhampton","Virgin Trains","71.40","Adoption and Residence Team & Allowances","4112","Public Transport","06/07/2018"
"Wolverhampton City Council","http://opendatacommunities.org/id/metropolitan-district-council/wolverhampton","AMAZON SVCS EU-UK AMAZ","9.30","Towers Outdoor Education Centre","5942","Equipment - Purchase","06/07/2018"
"Wolverhampton City Council","http://opendatacommunities.org/id/metropolitan-district-council/wolverhampton","FUEL CARD SERVICES LTD","690.85","Towers Outdoor Education Centre","7399","Petrol","06/07/2018"
"Wolverhampton City Council","http://opendatacommunities.org/id/metropolitan-district-council/wolverhampton","HARLECH FOODSERVICE LT","257.80","Towers Outdoor Education Centre","5422","Provisions (Not for resale)","06/07/2018"
"Wolverhampton City Council","http://opendatacommunities.org/id/metropolitan-district-council/wolverhampton","AMAZON SVCS EU-UK AMAZ","37.74","Towers Outdoor Education Centre","5942","Fixtures and Fittings - Purchases","06/07/2018"
"Wolverhampton City Council","http://opendatacommunities.org/id/metropolitan-district-council/wolverhampton","HOTEL IBIS","24.17","Electoral Registration","3533","Conference Expenses","06/07/2018"
"Wolverhampton City Council","http://opendatacommunities.org/id/metropolitan-district-council/wolverhampton","HOTEL IBIS","24.17","Electoral Registration","3533","Conference Expenses","06/07/2018"
"Wolverhampton City Council","http://opendatacommunities.org/id/metropolitan-district-council/wolverhampton","ALDI 94 772","16.66","EIP Locality 4","5411","Equipment - Purchase","06/07/2018"
"Wolverhampton City Council","http://opendatacommunities.org/id/metropolitan-district-council/wolverhampton","CT WOLVERHAMPTON",".00","EIP Locality 4","8398","Grant Payments","06/07/2018"
"Wolverhampton City Council","http://opendatacommunities.org/id/metropolitan-district-council/wolverhampton","POST OFFICE COUNTER","257.90","Fostering Team & Allowances","9402","Comms - Postage","06/07/2018"
"Wolverhampton City Council","http://opendatacommunities.org/id/metropolitan-district-council/wolverhampton","WWW.ISTOCK.COM","310.00","Communications & Marketing - General","5971","Services - Professional Fees","06/07/2018"
"Wolverhampton City Council","http://opendatacommunities.org/id/metropolitan-district-council/wolverhampton","FACEBK XF5QHGEAR2","7.04","Communications & Marketing - General","7311","Marketing \ Non-staff advertising","06/07/2018"
"Wolverhampton City Council","http://opendatacommunities.org/id/metropolitan-district-council/wolverhampton","FACEBK VF5QHGEAR2","314.60","Communications & Marketing - General","7311","Marketing \ Non-staff advertising","06/07/2018"
"Wolverhampton City Council","http://opendatacommunities.org/id/metropolitan-district-council/wolverhampton","Trainline","91.92","Mental Health Assessment & Care Mgmt","4112","Public Transport","06/07/2018"
"Wolverhampton City Council","http://opendatacommunities.org/id/metropolitan-district-council/wolverhampton","WOLVERHAMPTON CC","10.42","IMPACT","7523","Car Allowances","06/07/2018"
"Wolverhampton City Council","http://opendatacommunities.org/id/metropolitan-district-council/wolverhampton","Cross Country Trains","280.60","Schools HR Consultants","4112","Public Transport","06/07/2018"
"Wolverhampton City Council","http://opendatacommunities.org/id/metropolitan-district-council/wolverhampton","POUNDLAND LTD 1463","2.67","Admin & Support","5310","Catering","06/07/2018"
"Wolverhampton City Council","http://opendatacommunities.org/id/metropolitan-district-council/wolverhampton","MARKS&SPENCER PLC SACA","10.24","Admin & Support","5411","Provisions (Not for resale)","06/07/2018"
"Wolverhampton City Council","http://opendatacommunities.org/id/metropolitan-district-council/wolverhampton","Trainline","17.35","LAC Education Team (LACE)","4112","Public Transport","06/07/2018"
"Wolverhampton City Council","http://opendatacommunities.org/id/metropolitan-district-council/wolverhampton","WP-CENTRAL TAXIS L","60.17","LAC Education Team (LACE)","4121","Client Transport","06/07/2018"
"Wolverhampton City Council","http://opendatacommunities.org/id/metropolitan-district-council/wolverhampton","REGISTRARS OFFICE","20.00","Adoption and Residence Team & Allowances","8299","Services - Fees and Charges","06/07/2018"
"Wolverhampton City Council","http://opendatacommunities.org/id/metropolitan-district-council/wolverhampton","WWW.ARGOS.CO.UK","19.95","Central Baths","5310","Equipment - Purchase","06/07/2018"
"Wolverhampton City Council","http://opendatacommunities.org/id/metropolitan-district-council/wolverhampton","Trainline","9.45","CIN/CP Social Work Unit - Area 8","4112","Public Transport","06/07/2018"
"Wolverhampton City Council","http://opendatacommunities.org/id/metropolitan-district-council/wolverhampton","COMPANIES HOUSE","13.00","General Housing Administration","9399","Services - Fees and Charges","06/07/2018"
"Wolverhampton City Council","http://opendatacommunities.org/id/metropolitan-district-council/wolverhampton","SURVEYMONKEY.COM","280.00","Technical Support","5968","Subscriptions","06/07/2018"
"Wolverhampton City Council","http://opendatacommunities.org/id/metropolitan-district-council/wolverhampton","GO CARZ","32.00","LAC Team","4121","Client Transport","06/07/2018"
"Wolverhampton City Council","http://opendatacommunities.org/id/metropolitan-district-council/wolverhampton","BRITANNIA","28.75","CIN/CP Social Work Unit - Area 5","7011","Section 17","06/07/2018"
"Wolverhampton City Council","http://opendatacommunities.org/id/metropolitan-district-council/wolverhampton","WWW.TOBYGIFTS.CO.UK","80.00","CIN/CP Social Work Unit - Area 4","5999","Section 17","06/07/2018"
"Wolverhampton City Council","http://opendatacommunities.org/id/metropolitan-district-council/wolverhampton","CITY OF WOLVERHAMPTON","60.00","Head of Service - CINCP","9399","Services - Professional Fees","06/07/2018"
"Wolverhampton City Council","http://opendatacommunities.org/id/metropolitan-district-council/wolverhampton","WWW.ARGOS.CO.UK","158.91","CIN/CP Social Work Unit - Area 4","5310","Section 17","06/07/2018"
"Wolverhampton City Council","http://opendatacommunities.org/id/metropolitan-district-council/wolverhampton","Amazon UK Marketplace","15.84","Towers Outdoor Education Centre","5942","Books","06/07/2018"
"Wolverhampton City Council","http://opendatacommunities.org/id/metropolitan-district-council/wolverhampton","Amazon UK Marketplace","4.16","Towers Outdoor Education Centre","5942","Equipment - Purchase","06/07/2018"
"Wolverhampton City Council","http://opendatacommunities.org/id/metropolitan-district-council/wolverhampton","ARGOS LTD","-44.99","Parent/Partnership Service","5310","Equipment - Purchase","06/07/2018"
"Wolverhampton City Council","http://opendatacommunities.org/id/metropolitan-district-council/wolverhampton","WWW.FLINTS.CO.UK","50.45","Maintenance of Exhibits","5691","Materials","05/07/2018"
"Wolverhampton City Council","http://opendatacommunities.org/id/metropolitan-district-council/wolverhampton","WWW.PESTCONTROLSUPERMA","29.34","Collections","7342","Materials","05/07/2018"
"Wolverhampton City Council","http://opendatacommunities.org/id/metropolitan-district-council/wolverhampton","DISCLOSURE & BARRING","13.00","Head of Service Specialist Int Support","9399","Services - Fees and Charges","05/07/2018"
"Wolverhampton City Council","http://opendatacommunities.org/id/metropolitan-district-council/wolverhampton","B&M RETAIL LTD","8.31","LAC Transitions Team","5310","Independant Living Allowance","05/07/2018"
"Wolverhampton City Council","http://opendatacommunities.org/id/metropolitan-district-council/wolverhampton","ARGOS LTD","34.15","LAC Transitions Team","5310","Independant Living Allowance","05/07/2018"
"Wolverhampton City Council","http://opendatacommunities.org/id/metropolitan-district-council/wolverhampton","CT WOLVERHAMPTON","66.67","LAC Transitions Team","8398","Independant Living Allowance","05/07/2018"
"Wolverhampton City Council","http://opendatacommunities.org/id/metropolitan-district-council/wolverhampton","ROYAL BK OF SCOTLAND","250.00","CIN/CP Social Work Unit - Area 6","6011","Financial Assistance In Exceptional Circ","05/07/2018"
"Wolverhampton City Council","http://opendatacommunities.org/id/metropolitan-district-council/wolverhampton","BEST WESTERN HOTELS","57.37","Adoption and Residence Team & Allowances","3502","Accommodation Costs","05/07/2018"
"Wolverhampton City Council","http://opendatacommunities.org/id/metropolitan-district-council/wolverhampton","POST OFFICE COUNTER","8.60","Adoption and Residence Team & Allowances","9402","Comms - Postage","05/07/2018"
"Wolverhampton City Council","http://opendatacommunities.org/id/metropolitan-district-council/wolverhampton","PREMIER INN","234.17","Fostering Team & Allowances","3811","Services - Supplies & Services to users","05/07/2018"
"Wolverhampton City Council","http://opendatacommunities.org/id/metropolitan-district-council/wolverhampton","PRODUCT SUPPORT AG","6.66","Headstart - Young People Engagement","5968","Computing - Maint Agreements","05/07/2018"
"Wolverhampton City Council","http://opendatacommunities.org/id/metropolitan-district-council/wolverhampton","PRODUCT SUPPORT AG","6.66","Headstart - Young People Engagement","5968","Computing - Maint Agreements","05/07/2018"
"Wolverhampton City Council","http://opendatacommunities.org/id/metropolitan-district-council/wolverhampton","CIVIC HALL","4.95","IMPACT","5813","Educ Trips, Holidays, Outings, Activity","05/07/2018"
"Wolverhampton City Council","http://opendatacommunities.org/id/metropolitan-district-council/wolverhampton","WATERSTONES","5.00","Admin & Support","5942","Books","05/07/2018"
"Wolverhampton City Council","http://opendatacommunities.org/id/metropolitan-district-council/wolverhampton","WATERSTONES","10.00","Admin & Support","5942","Books","05/07/2018"
"Wolverhampton City Council","http://opendatacommunities.org/id/metropolitan-district-council/wolverhampton","POUNDLAND LTD 1463","15.04","Admin & Support","5310","Equipment - Purchase","05/07/2018"
"Wolverhampton City Council","http://opendatacommunities.org/id/metropolitan-district-council/wolverhampton","POUNDLAND LTD 1463","3.37","Admin & Support","5310","Equipment - Purchase","05/07/2018"
"Wolverhampton City Council","http://opendatacommunities.org/id/metropolitan-district-council/wolverhampton","HOTJAR","80.99","City Direct","5045","Computing - Purchase of Hardware","05/07/2018"
"Wolverhampton City Council","http://opendatacommunities.org/id/metropolitan-district-council/wolverhampton","ARGOS RETAIL GROUP","60.80","LAC Transitions Team","5310","Client Allowances","05/07/2018"
"Wolverhampton City Council","http://opendatacommunities.org/id/metropolitan-district-council/wolverhampton","WWW.THEWORKS.CO.UK","69.00","EIP Locality 6","5310","Stationery","05/07/2018"
"Wolverhampton City Council","http://opendatacommunities.org/id/metropolitan-district-council/wolverhampton","WWW.WMCA.CO.UK","652.00","Delivery & OCE Development","9399","Public Transport","05/07/2018"
"Wolverhampton City Council","http://opendatacommunities.org/id/metropolitan-district-council/wolverhampton","WWW.SPORTANDLEISUR","279.99","Upper Pendeford Farm Childrens Home","5941","Equipment - Purchase","05/07/2018"
"Wolverhampton City Council","http://opendatacommunities.org/id/metropolitan-district-council/wolverhampton","ARGOS WOLVERHAMPTO","15.58","Emergency Duty Team","5310","Equipment - Purchase","05/07/2018"
"Wolverhampton City Council","http://opendatacommunities.org/id/metropolitan-district-council/wolverhampton","POTTERYCRAFTS LTD","51.20","Creative Studies Delivery Area","5950","Equipment - Purchase","05/07/2018"
"Wolverhampton City Council","http://opendatacommunities.org/id/metropolitan-district-council/wolverhampton","Amazon UK Marketplace","11.62","Service Wide","5942","Books","05/07/2018"
"Wolverhampton City Council","http://opendatacommunities.org/id/metropolitan-district-council/wolverhampton","LUL TICKET MACHINE","10.00","Art Gallery","4112","Public Transport","05/07/2018"
"Wolverhampton City Council","http://opendatacommunities.org/id/metropolitan-district-council/wolverhampton","ROYAL CARPETS","125.00","LAC Transitions Team","5713","Independant Living Allowance","05/07/2018"
"Wolverhampton City Council","http://opendatacommunities.org/id/metropolitan-district-council/wolverhampton","SPORTSDIRECT.COM","979.72","Cycling Schemes - Bikeability","5941","Equipment - Purchase","05/07/2018"
"Wolverhampton City Council","http://opendatacommunities.org/id/metropolitan-district-council/wolverhampton","CT WOLVERHAMPTON","55.00","EIP Locality 1","8398","Grant Payments","05/07/2018"
"Wolverhampton City Council","http://opendatacommunities.org/id/metropolitan-district-council/wolverhampton","INPRINT LITHO LIMITED","253.00","Technical Support","2741","Publications","05/07/2018"
"Wolverhampton City Council","http://opendatacommunities.org/id/metropolitan-district-council/wolverhampton","Amazon Prime","7.99","Education And Access","5968","Subscriptions","05/07/2018"
"Wolverhampton City Council","http://opendatacommunities.org/id/metropolitan-district-council/wolverhampton","Amazon UK Marketplace","12.50","Environmental Health - Pub Prot - Gen","5942","Equipment - Purchase","05/07/2018"
"Wolverhampton City Council","http://opendatacommunities.org/id/metropolitan-district-council/wolverhampton","GO CARZ","-16.20","MASH","4121","Client Transport","05/07/2018"
"Wolverhampton City Council","http://opendatacommunities.org/id/metropolitan-district-council/wolverhampton","DUDLEY MET CNL ATP","237.50","Music Support Team","7999","Services - Professional Fees","05/07/2018"
"Wolverhampton City Council","http://opendatacommunities.org/id/metropolitan-district-council/wolverhampton","TFM FARM & COUNTRY SUP","149.37","Northicote Farm","5399","Equipment - Purchase","05/07/2018"
"Wolverhampton City Council","http://opendatacommunities.org/id/metropolitan-district-council/wolverhampton","ARGOS RETAIL GROUP","44.99","Parent/Partnership Service","5310","Equipment - Purchase","04/07/2018"
"Wolverhampton City Council","http://opendatacommunities.org/id/metropolitan-district-council/wolverhampton","WM MORRISON FOOD.COM","56.85","Discretionary Fund","5411","Materials","04/07/2018"
"Wolverhampton City Council","http://opendatacommunities.org/id/metropolitan-district-council/wolverhampton","B&M RETAIL","54.90","LAC Transitions Team","5310","Independant Living Allowance","04/07/2018"
"Wolverhampton City Council","http://opendatacommunities.org/id/metropolitan-district-council/wolverhampton","ARGOS LTD","166.66","LAC Transitions Team","5310","Independant Living Allowance","04/07/2018"
"Wolverhampton City Council","http://opendatacommunities.org/id/metropolitan-district-council/wolverhampton","DULUX DECORATOR CENTRE","38.86","Melanie Tomlinson","5198","Materials","04/07/2018"
"Wolverhampton City Council","http://opendatacommunities.org/id/metropolitan-district-council/wolverhampton","Amazon UK Marketplace","6.99","EIP Locality 3","5942","Equipment - Purchase","04/07/2018"
"Wolverhampton City Council","http://opendatacommunities.org/id/metropolitan-district-council/wolverhampton","PAYPAL  THEROTA","180.09","Visitor Economy - Development","5735","Computing - Purchase of Software","04/07/2018"
"Wolverhampton City Council","http://opendatacommunities.org/id/metropolitan-district-council/wolverhampton","POST OFFICE COUNTER","8.60","Adoption and Residence Team & Allowances","9402","Comms - Postage","04/07/2018"
"Wolverhampton City Council","http://opendatacommunities.org/id/metropolitan-district-council/wolverhampton","TESCO STORES 5194","154.10","Towers Outdoor Education Centre","5411","Provisions (Not for resale)","04/07/2018"
"Wolverhampton City Council","http://opendatacommunities.org/id/metropolitan-district-council/wolverhampton","SUK RETAIL LTD","66.62","Fostering Team & Allowances","5943","Stationery","04/07/2018"
"Wolverhampton City Council","http://opendatacommunities.org/id/metropolitan-district-council/wolverhampton","Amazon EU","15.99","LAC Education Team (LACE)","5969","Equipment - Purchase","04/07/2018"
"Wolverhampton City Council","http://opendatacommunities.org/id/metropolitan-district-council/wolverhampton","CITY OF WOLVERHAMPTON","30.00","Legal Services","9399","Services - Fees and Charges","04/07/2018"
"Wolverhampton City Council","http://opendatacommunities.org/id/metropolitan-district-council/wolverhampton","Amazon UK Marketplace","81.67","Central Baths","5942","Books","04/07/2018"
"Wolverhampton City Council","http://opendatacommunities.org/id/metropolitan-district-council/wolverhampton","Amazon UK Marketplace","66.66","Central Baths","5942","Books","04/07/2018"
"Wolverhampton City Council","http://opendatacommunities.org/id/metropolitan-district-council/wolverhampton","Amazon UK Marketplace","282.50","Central Baths","5942","Equipment - Purchase","04/07/2018"
"Wolverhampton City Council","http://opendatacommunities.org/id/metropolitan-district-council/wolverhampton","ASDA SUPERSTORE","140.00","CIN/CP Social Work Unit - Area 3","5411","No Recourse to Public Funds","04/07/2018"
"Wolverhampton City Council","http://opendatacommunities.org/id/metropolitan-district-council/wolverhampton","WWW.ARGOS.CO.UK","238.93","Emergency Duty Team","5310","Equipment - Purchase","04/07/2018"
"Wolverhampton City Council","http://opendatacommunities.org/id/metropolitan-district-council/wolverhampton","WOLVERHAMPTON TO","-114.10","Mental Health Assessment & Care Mgmt","4112","Public Transport","04/07/2018"
"Wolverhampton City Council","http://opendatacommunities.org/id/metropolitan-district-council/wolverhampton","Amazon UK Marketplace","23.98","Service Wide","5942","Books","04/07/2018"
"Wolverhampton City Council","http://opendatacommunities.org/id/metropolitan-district-council/wolverhampton","B&M RETAIL","16.64","LAC Transitions Team","5310","Client Allowances","04/07/2018"
"Wolverhampton City Council","http://opendatacommunities.org/id/metropolitan-district-council/wolverhampton","SEVERN TRENT WATER","23.03","LAC Transitions Team","4900","Client Allowances","04/07/2018"
"Wolverhampton City Council","http://opendatacommunities.org/id/metropolitan-district-council/wolverhampton","MAX SPIELMANN LTD","35.00","Director of Education","7221","Publications","04/07/2018"
"Wolverhampton City Council","http://opendatacommunities.org/id/metropolitan-district-council/wolverhampton","WWW.JCTLTD.CO.UK","65.12","HRA General","5942","Books","04/07/2018"
"Wolverhampton City Council","http://opendatacommunities.org/id/metropolitan-district-council/wolverhampton","ROYAL MAIL GROUP LTD","275.00","Wholly Owned Company - Operations","9402","Comms - Postage","04/07/2018"
"Wolverhampton City Council","http://opendatacommunities.org/id/metropolitan-district-council/wolverhampton","Amazon UK Marketplace","4.16","Vulnerable Young Persons Team","5942","Books","04/07/2018"
"Wolverhampton City Council","http://opendatacommunities.org/id/metropolitan-district-council/wolverhampton","Cross Country Trains","7.80","Head of Strategic Commissioning � People","4112","Public Transport","04/07/2018"
"Wolverhampton City Council","http://opendatacommunities.org/id/metropolitan-district-council/wolverhampton","1&1 INTERNET LIMITED","16.10","Technical Support","4816","Computing - Purchase of Software","04/07/2018"
"Wolverhampton City Council","http://opendatacommunities.org/id/metropolitan-district-council/wolverhampton","WM MORRISON 024","62.62","LAC Transitions Team","5411","Client Allowances","04/07/2018"
"Wolverhampton City Council","http://opendatacommunities.org/id/metropolitan-district-council/wolverhampton","Trainline","89.30","Head of Service - LAC","4112","Public Transport","04/07/2018"
"Wolverhampton City Council","http://opendatacommunities.org/id/metropolitan-district-council/wolverhampton","J VAN VLIET BIRMINGHAM","87.95","Creative Studies Delivery Area","5399","Materials","04/07/2018"
"Wolverhampton City Council","http://opendatacommunities.org/id/metropolitan-district-council/wolverhampton","GO CARZ","16.20","MASH","4121","Client Transport","04/07/2018"
"Wolverhampton City Council","http://opendatacommunities.org/id/metropolitan-district-council/wolverhampton","GO CARZ","16.20","MASH","4121","Client Transport","04/07/2018"
"Wolverhampton City Council","http://opendatacommunities.org/id/metropolitan-district-council/wolverhampton","Trainline","43.00","Inclusion Support","4112","Training Expenses","04/07/2018"
"Wolverhampton City Council","http://opendatacommunities.org/id/metropolitan-district-council/wolverhampton","Trainline","54.50","Inclusion Support","4112","Training Expenses","04/07/2018"
"Wolverhampton City Council","http://opendatacommunities.org/id/metropolitan-district-council/wolverhampton","Trainline","21.75","Inclusion Support","4112","Training Expenses","04/07/2018"
"Wolverhampton City Council","http://opendatacommunities.org/id/metropolitan-district-council/wolverhampton","SAINSBURYS LOC4471","6.35","Street Cleansing Overheads","5411","Provisions (Not for resale)","04/07/2018"
"Wolverhampton City Council","http://opendatacommunities.org/id/metropolitan-district-council/wolverhampton","SCREWFIX WOLVERHAM","99.97","Site works","5211","Equipment - Purchase","04/07/2018"
"Wolverhampton City Council","http://opendatacommunities.org/id/metropolitan-district-council/wolverhampton","SCREWFIX DIRECT","299.92","Site works","5211","Equipment - Purchase","04/07/2018"
"Wolverhampton City Council","http://opendatacommunities.org/id/metropolitan-district-council/wolverhampton","SCREWFIX DIRECT LT","119.97","Site works","5211","Equipment - Purchase","04/07/2018"
"Wolverhampton City Council","http://opendatacommunities.org/id/metropolitan-district-council/wolverhampton","AMAZON SVCS EU-UK AMAZ","19.99","EIP Locality 8","5942","Stationery","03/07/2018"
"Wolverhampton City Council","http://opendatacommunities.org/id/metropolitan-district-council/wolverhampton","REDWINGS LODGE","46.62","Emergency Duty Team","7011","Services - Supplies & Services to users","03/07/2018"
"Wolverhampton City Council","http://opendatacommunities.org/id/metropolitan-district-council/wolverhampton","TEX MEADOWVALEGAR","36.99","Towers Outdoor Education Centre","5541","Fixtures and Fittings - Purchases","03/07/2018"
"Wolverhampton City Council","http://opendatacommunities.org/id/metropolitan-district-council/wolverhampton","AMAZON SVCS EU-UK AMAZ","64.05","EIP Locality 4","5942","Books","03/07/2018"
"Wolverhampton City Council","http://opendatacommunities.org/id/metropolitan-district-council/wolverhampton","NOTJUSTBALLOONS","5.13","WV Active Marketing","5947","Equipment - Purchase","03/07/2018"
"Wolverhampton City Council","http://opendatacommunities.org/id/metropolitan-district-council/wolverhampton","WOLVERHAMPTON TO","17.40","IMPACT","4112","Public Transport","03/07/2018"
"Wolverhampton City Council","http://opendatacommunities.org/id/metropolitan-district-council/wolverhampton","ASDA GROCERIES ONLINE","87.21","Ernest Bold Court","5411","Provisions (Not for resale)","03/07/2018"
"Wolverhampton City Council","http://opendatacommunities.org/id/metropolitan-district-council/wolverhampton","B&M RETAIL","133.10","LAC Transitions Team","5310","Client Allowances","03/07/2018"
"Wolverhampton City Council","http://opendatacommunities.org/id/metropolitan-district-council/wolverhampton","B&M RETAIL","201.92","LAC Transitions Team","5310","Client Allowances","03/07/2018"
"Wolverhampton City Council","http://opendatacommunities.org/id/metropolitan-district-council/wolverhampton","LOVE2SHOP.CO.UK","30.00","HOS Early Intervention","8641","Provisions (Not for resale)","03/07/2018"
"Wolverhampton City Council","http://opendatacommunities.org/id/metropolitan-district-council/wolverhampton","SCREWFIX WOLVERHAM","23.99","Public Conveniences","5211","Materials","03/07/2018"
"Wolverhampton City Council","http://opendatacommunities.org/id/metropolitan-district-council/wolverhampton","Amazon EU","93.89","Strategic ICTS (ICT Serv Budget)","5969","Equipment - Purchase","03/07/2018"
"Wolverhampton City Council","http://opendatacommunities.org/id/metropolitan-district-council/wolverhampton","CardtronicsUK","40.00","EIP Locality 3","6011","Grant Payments","03/07/2018"
"Wolverhampton City Council","http://opendatacommunities.org/id/metropolitan-district-council/wolverhampton","Virgin Trains","162.70","LAC Team","4112","Public Transport","03/07/2018"
"Wolverhampton City Council","http://opendatacommunities.org/id/metropolitan-district-council/wolverhampton","UNI KENT STORE","99.00","Inclusion Support","8220","Training Expenses","03/07/2018"
"Wolverhampton City Council","http://opendatacommunities.org/id/metropolitan-district-council/wolverhampton","GRO HM PASSPORT OFFICE","7.71","LAC Transitions Team","9399","Client Allowances","03/07/2018"
"Wolverhampton City Council","http://opendatacommunities.org/id/metropolitan-district-council/wolverhampton","Amazon EU","19.48","Licensing - General","5969","Equipment - Purchase","03/07/2018"
"Wolverhampton City Council","http://opendatacommunities.org/id/metropolitan-district-council/wolverhampton","PAYPAL  FLYTESOFANC","110.83","Northicote Farm","5331","Equipment - Purchase","03/07/2018"
"Wolverhampton City Council","http://opendatacommunities.org/id/metropolitan-district-council/wolverhampton","Trainline","221.25","Legal Services","4112","Public Transport","03/07/2018"
"Wolverhampton City Council","http://opendatacommunities.org/id/metropolitan-district-council/wolverhampton","Trainline","77.50","Director of Education","4112","Public Transport","03/07/2018"
"Wolverhampton City Council","http://opendatacommunities.org/id/metropolitan-district-council/wolverhampton","ARGOS RETAIL GROUP","98.39","EIP Locality 1","5310","Grant Payments","03/07/2018"
"Wolverhampton City Council","http://opendatacommunities.org/id/metropolitan-district-council/wolverhampton","CT WOLVERHAMPTON","235.00","EIP Locality 1","8398","Grant Payments","03/07/2018"
"Wolverhampton City Council","http://opendatacommunities.org/id/metropolitan-district-council/wolverhampton","WOLVERHAMPTON TO","12.85","Transportation General","4112","Public Transport","03/07/2018"
"Wolverhampton City Council","http://opendatacommunities.org/id/metropolitan-district-council/wolverhampton","WOLVERHAMPTON CC","3.33","Headstart Phase 3","7523","Car Allowances","03/07/2018"
"Wolverhampton City Council","http://opendatacommunities.org/id/metropolitan-district-council/wolverhampton","Amazon UK Marketplace","4.16","Vulnerable Young Persons Team","5942","Equipment - Health and Safety","03/07/2018"
"Wolverhampton City Council","http://opendatacommunities.org/id/metropolitan-district-council/wolverhampton","Amazon UK Marketplace","6.40","Vulnerable Young Persons Team","5942","Computing - Purchase of Hardware","03/07/2018"
"Wolverhampton City Council","http://opendatacommunities.org/id/metropolitan-district-council/wolverhampton","ALDI 94 772","1.56","Specialist Support Service - North","5411","Catering","03/07/2018"
"Wolverhampton City Council","http://opendatacommunities.org/id/metropolitan-district-council/wolverhampton","ASDA SUPERSTORE","28.57","CIN/CP Social Work Unit - Area 5","5411","No Recourse to Public Funds","02/07/2018"
"Wolverhampton City Council","http://opendatacommunities.org/id/metropolitan-district-council/wolverhampton","POUNDWORLD RETAIL","15.00","Mayoral Expenses","5331","Hospitality","02/07/2018"
"Wolverhampton City Council","http://opendatacommunities.org/id/metropolitan-district-council/wolverhampton","Virgin Trains","-30.00","Audit Services","4112","Public Transport","02/07/2018"
"Wolverhampton City Council","http://opendatacommunities.org/id/metropolitan-district-council/wolverhampton","W M MORRISON PLC","8.04","CIN/CP Social Work Unit - Area 6","5411","Provisions (Not for resale)","02/07/2018"
"Wolverhampton City Council","http://opendatacommunities.org/id/metropolitan-district-council/wolverhampton","WWW.IKEA.COM","-66.67","EIP Locality 4","5712","Equipment - Purchase","02/07/2018"
"Wolverhampton City Council","http://opendatacommunities.org/id/metropolitan-district-council/wolverhampton","FACEBK PVP7VEWA82","14.47","WV Active Marketing","7311","Marketing \ Non-staff advertising","02/07/2018"
"Wolverhampton City Council","http://opendatacommunities.org/id/metropolitan-district-council/wolverhampton","POST OFFICE COUNTER","1.77","CIN/CP Social Work Unit - Area 4","9402","Comms - Postage","02/07/2018"
"Wolverhampton City Council","http://opendatacommunities.org/id/metropolitan-district-council/wolverhampton","SAINSBURYS","200.00","Duke Street Bungalows","6011","Provisions (Not for resale)","02/07/2018"
"Wolverhampton City Council","http://opendatacommunities.org/id/metropolitan-district-council/wolverhampton","SAINSBURYS 2040","20.00","Duke Street Bungalows","5411","R4010","02/07/2018"
"Wolverhampton City Council","http://opendatacommunities.org/id/metropolitan-district-council/wolverhampton","WOLVERHAMPTON TO","124.40","Strategic Asset Management Team","4112","Public Transport","02/07/2018"
"Wolverhampton City Council","http://opendatacommunities.org/id/metropolitan-district-council/wolverhampton","ASDA GROCERIES ONLINE","-4.00","Ernest Bold Court","5411","Provisions (Not for resale)","02/07/2018"
"Wolverhampton City Council","http://opendatacommunities.org/id/metropolitan-district-council/wolverhampton","ASDA GROCERIES ONLINE","-2.00","Ernest Bold Court","5411","Provisions (Not for resale)","02/07/2018"
"Wolverhampton City Council","http://opendatacommunities.org/id/metropolitan-district-council/wolverhampton","ASDA GROCERIES ONLINE","80.21","Ernest Bold Court","5411","Provisions (Not for resale)","02/07/2018"
"Wolverhampton City Council","http://opendatacommunities.org/id/metropolitan-district-council/wolverhampton","COMPANIES HOUSE","13.00","Legal Services","9399","Services - Professional Fees","02/07/2018"
"Wolverhampton City Council","http://opendatacommunities.org/id/metropolitan-district-council/wolverhampton","GRO HM PASSPORT OFFICE","23.40","Head of Service - CINCP","9399","Services - Professional Fees","02/07/2018"
"Wolverhampton City Council","http://opendatacommunities.org/id/metropolitan-district-council/wolverhampton","GO CARZ","16.20","MASH","4121","Client Transport","02/07/2018"
"Wolverhampton City Council","http://opendatacommunities.org/id/metropolitan-district-council/wolverhampton","GO CARZ","16.20","MASH","4121","Client Transport","02/07/2018"
"Wolverhampton City Council","http://opendatacommunities.org/id/metropolitan-district-council/wolverhampton","WWW.ARGOS.CO.UK","69.95","CIN/CP Social Work Unit - Area 8","5310","Section 17","02/07/2018"
"Wolverhampton City Council","http://opendatacommunities.org/id/metropolitan-district-council/wolverhampton","Amazon EU","16.50","Towers Outdoor Education Centre","5969","Equipment - Purchase","02/07/2018"
"Wolverhampton City Council","http://opendatacommunities.org/id/metropolitan-district-council/wolverhampton","Amazon UK Marketplace","3.56","Towers Outdoor Education Centre","5942","Equipment - Purchase","02/07/2018"
"Wolverhampton City Council","http://opendatacommunities.org/id/metropolitan-district-council/wolverhampton","ASDA GROCERIES ONLINE","90.89","Upper Pendeford Farm Childrens Home","5411","Provisions (Not for resale)","02/07/2018"
"Wolverhampton City Council","http://opendatacommunities.org/id/metropolitan-district-council/wolverhampton","WOLVERHAMPTON CC","1.50","Upper Pendeford Farm Childrens Home","7523","Car Allowances","02/07/2018"
"Wolverhampton City Council","http://opendatacommunities.org/id/metropolitan-district-council/wolverhampton","Virgin Trains","35.90","MASH","4112","Section 17","02/07/2018"
"Wolverhampton City Council","http://opendatacommunities.org/id/metropolitan-district-council/wolverhampton","SELECTAMARK","54.25","Travelwise","5964","Events","02/07/2018"
"Wolverhampton City Council","http://opendatacommunities.org/id/metropolitan-district-council/wolverhampton","WAITROSE 696","17.69","Vulnerable Young Persons Team","5411","Provisions (Not for resale)","02/07/2018"
"Wolverhampton City Council","http://opendatacommunities.org/id/metropolitan-district-council/wolverhampton","POST OFFICE COUNTER","335.00","Vulnerable Young Persons Team","9402","Comms - Postage","02/07/2018"
"Wolverhampton City Council","http://opendatacommunities.org/id/metropolitan-district-council/wolverhampton","WIX.COM","93.13","Technical Support","5968","Subscriptions","02/07/2018"
"Wolverhampton City Council","http://opendatacommunities.org/id/metropolitan-district-council/wolverhampton","POUNDWORLD RETAIL","18.00","Mayoral Expenses","5331","Hospitality","02/07/2018"
"Wolverhampton City Council","http://opendatacommunities.org/id/metropolitan-district-council/wolverhampton","ASDA SUPERSTORE","7.08","Mayoral Expenses","5411","Hospitality","02/07/2018"
"Wolverhampton City Council","http://opendatacommunities.org/id/metropolitan-district-council/wolverhampton","ASDA SUPERSTORE","11.62","Mayoral Expenses","5411","Hospitality","02/07/2018"
"Wolverhampton City Council","http://opendatacommunities.org/id/metropolitan-district-council/wolverhampton","ASDA SUPERSTORE","32.50","Mayoral Expenses","5411","Hospitality","02/07/2018"
"Wolverhampton City Council","http://opendatacommunities.org/id/metropolitan-district-council/wolverhampton","WM MORRISONS","20.37","Safeguarding Admin Resource","5411","Catering","02/07/2018"
"Wolverhampton City Council","http://opendatacommunities.org/id/metropolitan-district-council/wolverhampton","GOOGLE  SVCSAPPS_wolve","9.90","Visitor Economy - Development","5968","Subscriptions","02/07/2018"
"Wolverhampton City Council","http://opendatacommunities.org/id/metropolitan-district-council/wolverhampton","FACEBK P6K9JFJG52","45.73","Audience Development","7311","Marketing \ Non-staff advertising","02/07/2018"
"Wolverhampton City Council","http://opendatacommunities.org/id/metropolitan-district-council/wolverhampton","FACEBK N6K9JFJG52","13.11","Audience Development","7311","Marketing \ Non-staff advertising","02/07/2018"
"Wolverhampton City Council","http://opendatacommunities.org/id/metropolitan-district-council/wolverhampton","Amazon EU","7.96","Towers Outdoor Education Centre","5969","Equipment - Purchase","02/07/2018"
"Wolverhampton City Council","http://opendatacommunities.org/id/metropolitan-district-council/wolverhampton","Amazon UK Marketplace","36.00","Towers Outdoor Education Centre","5942","Fixtures and Fittings - Purchases","02/07/2018"
"Wolverhampton City Council","http://opendatacommunities.org/id/metropolitan-district-council/wolverhampton","FACEBK NVP7VEWA82","46.80","WV Active Marketing","7311","Marketing \ Non-staff advertising","02/07/2018"
"Wolverhampton City Council","http://opendatacommunities.org/id/metropolitan-district-council/wolverhampton","FACEBK DKZHHGEAR2","74.10","Communications & Marketing - General","7311","Marketing \ Non-staff advertising","02/07/2018"
"Wolverhampton City Council","http://opendatacommunities.org/id/metropolitan-district-council/wolverhampton","Amazon UK Marketplace","71.12","Aldersley Leisure Village","5942","Equipment - Purchase","02/07/2018"
"Wolverhampton City Council","http://opendatacommunities.org/id/metropolitan-district-council/wolverhampton","ASDA SUPERSTORE","5.63","Youth Offending Team","5411","Provisions (Not for resale)","02/07/2018"
"Wolverhampton City Council","http://opendatacommunities.org/id/metropolitan-district-council/wolverhampton","Amazon UK Marketplace","1.25","Strategic ICTS (ICT Serv Budget)","5942","Books","02/07/2018"
"Wolverhampton City Council","http://opendatacommunities.org/id/metropolitan-district-council/wolverhampton","CardtronicsUK","100.00","Intensive Family Support Team","6011","Financial Assistance In Exceptional Circ","02/07/2018"
"Wolverhampton City Council","http://opendatacommunities.org/id/metropolitan-district-council/wolverhampton","CardtronicsUK","250.00","Intensive Family Support Team","6011","Financial Assistance In Exceptional Circ","02/07/2018"
"Wolverhampton City Council","http://opendatacommunities.org/id/metropolitan-district-council/wolverhampton","ASDA GROCERIES ONLINE","-2.04","Upper Pendeford Farm Childrens Home","5411","Provisions (Not for resale)","02/07/2018"
"Wolverhampton City Council","http://opendatacommunities.org/id/metropolitan-district-council/wolverhampton","AMAZON SVCS EU-UK AMAZ","8.29","Global Budgets","5942","Books","02/07/2018"
"Wolverhampton City Council","http://opendatacommunities.org/id/metropolitan-district-council/wolverhampton","Amazon UK Marketplace","5.82","EIP Locality 3","5942","Grant Payments","02/07/2018"
"Wolverhampton City Council","http://opendatacommunities.org/id/metropolitan-district-council/wolverhampton","Amazon UK Marketplace","21.86","EIP Locality 3","5942","Grant Payments","02/07/2018"
"Wolverhampton City Council","http://opendatacommunities.org/id/metropolitan-district-council/wolverhampton","WOLVERHAMPTON RACECOUR","128.50","Economic Development","7999","Educ Trips, Holidays, Outings, Activity","02/07/2018"
"Wolverhampton City Council","http://opendatacommunities.org/id/metropolitan-district-council/wolverhampton","SCREWFIX DIRECT LT","3.82","Car Parks Operational Staff","5211","Equipment - Purchase","02/07/2018"
"Wolverhampton City Council","http://opendatacommunities.org/id/metropolitan-district-council/wolverhampton","ASDA SUPERSTORE","9.04","EIP Locality 5","5411","Grant Payments","02/07/2018"
"Wolverhampton City Council","http://opendatacommunities.org/id/metropolitan-district-council/wolverhampton","ASDA SUPERSTORE","14.37","EIP Locality 5","5411","Grant Payments","02/07/2018"
"Wolverhampton City Council","http://opendatacommunities.org/id/metropolitan-district-council/wolverhampton","CardtronicsUK","20.00","Delivery & OCE Development","6011","Financial Assistance In Exceptional Circ","02/07/2018"
"Wolverhampton City Council","http://opendatacommunities.org/id/metropolitan-district-council/wolverhampton","GRO HM PASSPORT OFFICE","-7.71","LAC Transitions Team","9399","Client Allowances","02/07/2018"
"Wolverhampton City Council","http://opendatacommunities.org/id/metropolitan-district-council/wolverhampton","GRO HM PASSPORT OFFICE","19.50","LAC Transitions Team","9399","Client Allowances","02/07/2018"
"Wolverhampton City Council","http://opendatacommunities.org/id/metropolitan-district-council/wolverhampton","WWW.ARGOS.CO.UK","82.42","EIP Locality 7","5310","Grant Payments","02/07/2018"
"Wolverhampton City Council","http://opendatacommunities.org/id/metropolitan-district-council/wolverhampton","GREGGS PLC","54.93","Members Expenses","5812","Educ Trips, Holidays, Outings, Activity","02/07/2018"
"Wolverhampton City Council","http://opendatacommunities.org/id/metropolitan-district-council/wolverhampton","GREGGS PLC","39.17","Mayoral Expenses","5812","Catering","02/07/2018"
"Wolverhampton City Council","http://opendatacommunities.org/id/metropolitan-district-council/wolverhampton","POUNDWORLD RETAIL","12.00","Mayoral Expenses","5331","Hospitality","02/07/2018"
"Wolverhampton City Council","http://opendatacommunities.org/id/metropolitan-district-council/wolverhampton","Amazon EU","97.42","Licensing - General","5969","Equipment - Purchase","02/07/2018"
